{"text_format":"1","workbook":"xlsx","n_sheets":7,"sheets":["Disclaimer","C264 CORTEC","Configurator","Master Text","Change Log","Database","Tendering"],"not_rendered":{"charts":0,"images":4,"macros":1,"external_links":0,"defined_names":57,"comments":2,"pivot_tables":0},"unopened":[],"bounds":{"document_bytes":16777216,"sheet_cells":100000,"rows_first":2000,"rows_last":500,"rows_between":2000,"halvings":0,"cell_chars":16384,"cell_head_chars":4096},"cells_cut":0,"cells_raw":0,"read":"whole","date_system":"1900"}

{"sheet":"Disclaimer","index":0,"n_rows":8,"n_cols":2,"rows_kept":8,"cut":false,"hidden":false,"merged":[[4,1,4,9],[7,1,9,9],[5,1,6,9]]}
[]
[]
[]
[]
[null,"Our policy is one of continuous development. Accordingly the design of our products may change at any time. "]
[null,"Whilst every effort is made to produce up to date literature, this document should only be regarded as a guide and is intended for information purposes only."]
[]
[null,"Its contents do not constitute an offer for sale or advice on the application of any product referred to in it. We cannot be held responsible for any reliance on any decisions taken on its contents without specific advice."]

{"sheet":"C264 CORTEC","index":1,"n_rows":257,"n_cols":62,"rows_kept":257,"cut":false,"hidden":false,"merged":[]}
["MiCOM C264 CORTEC FOR C264-V3/V4,  fully assembled device",null,null,null,null,null,null,null,null,null,null,null,null,null,null,null,null,null,null,null,null,null,null,null,null,null,null,null,null,null,null,null,null,null,null,null,null,null,null,null,null,null,null,null,null,null,null,null,null,null,null,null,null,null,null,null,null,null,null,null,"Version:","V3_24.11"]
["Variants",null,null,null,null,null,null,null,null,null,null,null,null,null,null,null,null,null,null,null,null,null,null,null,null,null,null,null,null,null,null,null,null,null,null,null,null,null,null,null,null,null,null,null,null,null,null,null,null,null,null,null,null,null,null,null,null,null,null,null,null,"Notes /"]
[null,null,"Order N°",null,null,null,null,null,null,null,null,null,null,null,null,null,null,null,null,null,null,null,null,null,null,null,null,null,null,null,null,null,null,null,null,null,null,null,null,null,null,null,null,null,null,null,null,null,null,null,null,null,null,null,null,null,null,null,null,null,null,"Ext. N°"]
["MiCOM C264C/C264 - Modular Computer for Bay Controller, RTU, PLC application",null,null,null,null,null,null,null,"rack",null,"GHU",null,"lang",null,"P.S",null,"biu serial",null,"cpu",null,"cpu serial",null,null,null,"Tropical",null,"TMU",null,"Voltage",null,"DIU200",null,"DIU211",null,"DOU",null,"CCU",null,"AIU201",null,null,"AIU211",null,"AOU",null,"SW",null,null,null,null,null,"SBU200",null,"Isagraf",null,"Soft",null,"Built in",null,"detach "]
[null,"MiCOM C","2",null,"6",null,"4",null,null,null,null,null,null,null,null,null,null,null,"9",null,null,null,"0",null,null,null,null,null,null,null,null,null,null,null,null,null,null,null,null,null,null,null,null,null,null,null,null,"1",null,"1"]
["CORTEC CODE Synthesis (for export to Word Docs) :"]
[null,{"$f":"CONCATENATE(CONCATENATE(B$5,C$5,E$5,G$5,I$5,K$5,M$5,O$5,Q$5,S$5,U$5,W$5,Y$5,AA$5,AC$5,AE$5,AG$5,AI$5,AK$5,AM$5,AP$5,AR$5,AT$5,AV$5,AX$5,AZ$5,BB$5,BD$5,BF$5), BH$5)","v":"MiCOM C2649011"}]
["Basic Model and Components"]
["Package rack 4U (CAS2xx) + FBP2xx"]
[null,"Case 40 T for use wo. CT/VT (Compact size), IP52, pin-terminal connection, 6 slots  1) ",null,null,null,null,null,null,"C",null,null,null,null,null,null,null,null,null,null,null,null,null,null,null,null,null,null,null,null,null,null,null,null,null,null,null,null,null,null,null,null,null,null,null,null,null,null,null,null,null,null,null,null,null,null,null,null,null,null,null,null,"1)"]
[null,"Case 40 T for use with CT/VT (Compact size), IP52, pin-terminal connection, 4 slots 1) ",null,null,null,null,null,null,"S",null,null,null,null,null,null,null,null,null,null,null,null,null,null,null,null,null,null,null,null,null,null,null,null,null,null,null,null,null,null,null,null,null,null,null,null,null,null,null,null,null,null,null,null,null,null,null,null,null,null,null,null,"1)"]
[null,"Case 80 T for use without CT/VT (Medium size), IP20, pin-terminal connection, 15 slots 1) ",null,null,null,null,null,null,"L",null,null,null,null,null,null,null,null,null,null,null,null,null,null,null,null,null,null,null,null,null,null,null,null,null,null,null,null,null,null,null,null,null,null,null,null,null,null,null,null,null,null,null,null,null,null,null,null,null,null,null,null,"1)"]
[null,"Case 80 T for use with CT/VT (Medium size), IP20, pin-terminal connection, 14 slots 1) ",null,null,null,null,null,null,"M",null,null,null,null,null,null,null,null,null,null,null,null,null,null,null,null,null,null,null,null,null,null,null,null,null,null,null,null,null,null,null,null,null,null,null,null,null,null,null,null,null,null,null,null,null,null,null,null,null,null,null,null,"1) "]
[null,"Case 60 T for use without CT/VT (Medium size), IP20, pin-terminal connection, 10 slots 1) ",null,null,null,null,null,null,"T",null,null,null,null,null,null,null,null,null,null,null,null,null,null,null,null,null,null,null,null,null,null,null,null,null,null,null,null,null,null,null,null,null,null,null,null,null,null,null,null,null,null,null,null,null,null,null,null,null,null,null,null,"1)"]
[null,"Case 60 T for use with CT/VT (Medium size), IP20, pin-terminal connection, 9 slots 1) ",null,null,null,null,null,null,"U",null,null,null,null,null,null,null,null,null,null,null,null,null,null,null,null,null,null,null,null,null,null,null,null,null,null,null,null,null,null,null,null,null,null,null,null,null,null,null,null,null,null,null,null,null,null,null,null,null,null,null,null,"1)"]
["Front panel (GHU2xx) - Schneider Electric"]
[null,"Front Panel Leds and L/R switch - IP52 protection - GHU210 (40TE) or GHU211(80TE) or GHU212(60TE)",null,null,null,null,null,null,null,null,"0",null,null,null,null,null,null,null,null,null,null,null,null,null,null,null,null,null,null,null,null,null,null,null,null,null,null,null,null,null,null,null,null,null,null,null,null,null,null,null,null,null,null,null,null,null,null,null,null,null,null,"New GHU212 60TE! Generally available"]
[null,"Front Panel with Leds + Graphic Display LCD + L/R switch -GHU200(40TE)or GHU201(80TE) or GHU202(60TE) - IP52 prot.",null,null,null,null,null,null,null,null,"1"]
[null,"Simple Blind front panel : GHU220 (40TE) or GHU221(80TE) or GHU222 (60TE)  12)",null,null,null,null,null,null,null,null,"2",null,null,null,null,null,null,null,null,null,null,null,null,null,null,null,null,null,null,null,null,null,null,null,null,null,null,null,null,null,null,null,null,null,null,null,null,null,null,null,null,null,null,null,null,null,null,null,null,null,null,"New GHU222 60TE! Generally available"]
[null,"Detachable Front Panel with Graphic Display 40TE (GHU200) + Simple Blind Front panel (GHU22x)  12) ",null,null,null,null,null,null,null,null,"3",null,null,null,null,null,null,null,null,null,null,null,null,null,null,null,null,null,null,null,null,null,null,null,null,null,null,null,null,null,null,null,null,null,null,null,null,null,null,null,null,null,null,null,null,null,null,null,null,null,"Select the cable lenght"]
[null,"Detachable Front Panel with Graphic Display 80TE (GHU201) + Simple Blind Front panel (GHU22x)  12) ",null,null,null,null,null,null,null,null,"4",null,null,null,null,null,null,null,null,null,null,null,null,null,null,null,null,null,null,null,null,null,null,null,null,null,null,null,null,null,null,null,null,null,null,null,null,null,null,null,null,null,null,null,null,null,null,null,null,null,"Select cable "]
[null,"Detachable Front Panel with Leds 40TE (GHU210) + Simple Blind Front panel (GHU22x)  12) ",null,null,null,null,null,null,null,null,"5",null,null,null,null,null,null,null,null,null,null,null,null,null,null,null,null,null,null,null,null,null,null,null,null,null,null,null,null,null,null,null,null,null,null,null,null,null,null,null,null,null,null,null,null,null,null,null,null,null,"Select cable "]
[null,"Detachable Front Panel with Leds 80TE (GHU211) + Simple Blind Front panel (GHU22x)  12) ",null,null,null,null,null,null,null,null,"6",null,null,null,null,null,null,null,null,null,null,null,null,null,null,null,null,null,null,null,null,null,null,null,null,null,null,null,null,null,null,null,null,null,null,null,null,null,null,null,null,null,null,null,null,null,null,null,null,null,"Select cable "]
[null,"Language (including: Front panel labels, HMI) 8) "]
[null,"French ( English)",null,null,null,null,null,null,null,null,null,null,"0"]
[null,"English (English)",null,null,null,null,null,null,null,null,null,null,"1"]
[null,"Spanish (English)",null,null,null,null,null,null,null,null,null,null,"2"]
[null,"German (English)",null,null,null,null,null,null,null,null,null,null,"3"]
["Power supply and legacy ports (BIUxxx)"]
[null,"about BIU241: Vn +/- 20% -  2 DI/2DO - 2*serial Ports (port n°1 and port n°2 )"]
[null,"BIU241-A01 : VA,nom: 24 VDC  / Nominal  voltage for 2DI: 24 VDC ",null,null,null,null,null,null,null,null,null,null,null,null,"A"]
[null,"BIU241-A02 : VA,nom: 48 to 60 VDC  / Nominal voltage for 2DI: 48/60 VDC",null,null,null,null,null,null,null,null,null,null,null,null,"E"]
[null,"BIU241-A03  :VA,nom: 110 to 125 VDC  / Nominal voltage for 2 DI: 110/125 VDC ",null,null,null,null,null,null,null,null,null,null,null,null,"I"]
[null,"BIU241 A04 :  VA,nom: 220 VDC and 115 to 230VAC  / Nominal voltage for 2 DI: 220 VDC ",null,null,null,null,null,null,null,null,null,null,null,null,"M"]
[null,"about BIU261: Redundant/Double SOURCE  (+/- 20%) - 2 DI/2DO -  1 *serial Port only"]
[null,"BIU261-A02 : VA,nom: 48-60VDC  / Nominal  voltage for 2DI: 48-60 VDC ",null,null,null,null,null,null,null,null,null,null,null,null,"N",null,null,null,null,null,null,null,null,null,null,null,null,null,null,null,null,null,null,null,null,null,null,null,null,null,null,null,null,null,null,null,null,null,null,null,null,null,null,null,null,null,null,null,null,null,null,"Warning : only 1 serial port (n°2)"]
[null,"BIU261-A03 : VA,nom: 110-125 VDC  / Nominal voltage for 2DI: 110-125 VDC",null,null,null,null,null,null,null,null,null,null,null,null,"P",null,null,null,null,null,null,null,null,null,null,null,null,null,null,null,null,null,null,null,null,null,null,null,null,null,null,null,null,null,null,null,null,null,null,null,null,null,null,null,null,null,null,null,null,null,null,"Warning : only 1 serial port (n°2)"]
[null,"BIU261-A04  :VA,nom: 220VDC / Nominal voltage for 2 DI: 220 VDC ",null,null,null,null,null,null,null,null,null,null,null,null,"Q",null,null,null,null,null,null,null,null,null,null,null,null,null,null,null,null,null,null,null,null,null,null,null,null,null,null,null,null,null,null,null,null,null,null,null,null,null,null,null,null,null,null,null,null,null,null,"Warning : only 1 serial port (n°2)"]
[null,"about the BIU100 : only to be interfaced to the Redunded Power supply rack : RPS280 "]
[null,"BIU100 : 12V auxiliary voltage,  2 non isolated serial links    15)",null,null,null,null,null,null,null,null,null,null,null,null,"R",null,null,null,null,null,null,null,null,null,null,null,null,null,null,null,null,null,null,null,null,null,null,null,null,null,null,null,null,null,null,null,null,null,null,null,null,null,null,null,null,null,null,null,null,null,null,"Consult Mkg"]
["Factory setted legacy ports: port n°1 and n°2 on BIU241 board,    only port n°2 on BIU261   8) "]
[null,"Definition : Port N°2:RS232or RS422 or RS485 ; Port N°1: RS232or RS485 "]
[null,"Port N°2: RS232  ;   Port N°1: RS232 ",null,null,null,null,null,null,null,null,null,null,null,null,null,null,"1"]
[null,"Port N°2: RS232  ;  Port N°1: RS485  (BIU241 only)   - Not allowed on BIU261",null,null,null,null,null,null,null,null,null,null,null,null,null,null,"2",null,null,null,null,null,null,null,null,null,null,null,null,null,null,null,null,null,null,null,null,null,null,null,null,null,null,null,null,null,null,null,null,null,null,null,null,null,null,null,null,null,null,null,null,"Not applicable for BIU261"]
[null,"Port N°2:RS232, RS422, RS485 ; Port N°1: RS232, RS485 ",null,null,null,null,null,null,null,null,null,null,null,null,null,null,"3"]
[null,"Port N°2:RS232, RS422, RS485 ; Port N°1: RS232, RS485 ",null,null,null,null,null,null,null,null,null,null,null,null,null,null,"4"]
[null,"Port N°2:RS232, RS422, RS485 ; Port N°1: RS232, RS485 ",null,null,null,null,null,null,null,null,null,null,null,null,null,null,"5"]
[null,"Port N°2: RS485 ;   Port N°1: RS485 ",null,null,null,null,null,null,null,null,null,null,null,null,null,null,"6"]
["CPU and Base Communications (CPU2x0)"]
["Power PC processor board with Ethernet port(s) , 2 serial links, IRIGB input- CPU260-based    14)"]
[null,"CPU260(Type2) , with 1 Ethernet RJ45, IRIG-B input, 2 Serial links (Ref CPU2 = 45196300 A5)",null,null,null,null,null,null,null,null,null,null,null,null,null,null,null,null,"5",null,null,null,null,null,null,null,null,null,null,null,null,null,null,null,null,null,null,null,null,null,null,null,null,null,null,null,null,null,null,null,null,null,null,null,null,null,null,null,null,null,null,"Consult Mkg"]
[null,"CPU260(Type2)-based with Pack 2 =  IRIG-B input +2 serial links+ 100BaseFL MultiMode Ethernet  ",null,null,null,null,null,null,null,null,null,null,null,null,null,null,null,null,"6",null,null,null,null,null,null,null,null,null,null,null,null,null,null,null,null,null,null,null,null,null,null,null,null,null,null,null,null,null,null,null,null,null,null,null,null,null,null,null,null,null,null,"Consult Mkg"]
[null,"CPU270(Type3) , with 2*Ethernet RJ45, 64Mb FlashMemory, 1 ppm Oscillator accuracy   (Ref CPU270 = 2071590A02 )",null,null,null,null,null,null,null,null,null,null,null,null,null,null,null,null,"8",null,null,null,null,null,null,null,null,null,null,null,null,null,null,null,null,null,null,null,null,null,null,null,null,null,null,null,null,null,null,null,null,null,null,null,null,null,null,null,null,null,null,"Available w Mkg autorisation (delivery time)"]
[null,"CPU270(Type3) , with 2*Ethernet RJ45, 64Mb FlashMemory, 128Mb SDRAM, 50ppm Oscillator  (Ref CPU270 = 2071590A01 )",null,null,null,null,null,null,null,null,null,null,null,null,null,null,null,null,"9"]
[null,"CPU275 (Type 4) , with 2*Ethernet RJ45, 128Mb FlashMem, 256Mb SDRAM, 50 ppm Oscill (Ref CPU275 =2072282A01)",null,null,null,null,null,null,null,null,null,null,null,null,null,null,null,null,"A",null,null,null,null,null,null,null,null,null,null,null,null,null,null,null,null,null,null,null,null,null,null,null,null,null,null,null,null,null,null,null,null,null,null,null,null,null,null,null,null,null,null,"Generally Available"]
[null,"CPU275 (Type 4), with 2*Ethernet RJ45, 128Mb FlashMem, 256Mb SDRAM, 1 ppm Oscill (Ref CPU275 =2072282A02)",null,null,null,null,null,null,null,null,null,null,null,null,null,null,null,null,"B",null,null,null,null,null,null,null,null,null,null,null,null,null,null,null,null,null,null,null,null,null,null,null,null,null,null,null,null,null,null,null,null,null,null,null,null,null,null,null,null,null,null,"Generally Available"]
["For CPU with 2 serial links: Factory setted legacy ports N°3/4   8) "]
[null,"Configuration of the  legacy Ports N°3/4 :RS232 (non isolated), RS485, Optical settable",null,null,null,null,null,null,null,null,null,null,null,null,null,null,null,null,null,null,null,null,null,null,null,null,null,null,null,null,null,null,null,null,null,null,null,null,null,null,null,null,null,null,null,null,null,null,null,null,null,null,null,null,null,null,null,null,null,null,null,"no serial link"]
[null,"Port N°3:RS232 (non isolated)                           ; Port N°4: RS232 (non isolated)",null,null,null,null,null,null,null,null,null,null,null,null,null,null,null,null,null,null,"1"]
[null,"Port N°3:RS232 (non isolated), RS485, Optical ; Port N°4:             RS485(ECU201)",null,null,null,null,null,null,null,null,null,null,null,null,null,null,null,null,null,null,"2"]
[null,"Port N°3:RS232 (non isolated), RS485, Optical ; Port N°4:                            Optical(ECU200)",null,null,null,null,null,null,null,null,null,null,null,null,null,null,null,null,null,null,"3"]
[null,"Port N°3:          RS485(ECU201),                       ; Port N°4: RS232 (non isolated), RS485, Optical",null,null,null,null,null,null,null,null,null,null,null,null,null,null,null,null,null,null,"4"]
[null,"Port N°3:          RS485(ECU201)                        ; Port N°4:              RS485(ECU201)",null,null,null,null,null,null,null,null,null,null,null,null,null,null,null,null,null,null,"5"]
[null,"Port N°3:          RS485(ECU201),                       ; Port N°4:                RS485, Optical(ECU200)",null,null,null,null,null,null,null,null,null,null,null,null,null,null,null,null,null,null,"6"]
[null,"Port N°3:                      Optical(ECU200)          ; Port N°4: RS232 (non isolated)",null,null,null,null,null,null,null,null,null,null,null,null,null,null,null,null,null,null,"7"]
[null,"Port N°3:                      Optical(ECU200)          ; Port N°4:              RS485(ECU201)",null,null,null,null,null,null,null,null,null,null,null,null,null,null,null,null,null,null,"8"]
[null,"Port N°3:                      Optical(ECU200)          ; Port N°4:                             Optical(ECU200)",null,null,null,null,null,null,null,null,null,null,null,null,null,null,null,null,null,null,"9"]
["Inputs / outputs boards and Ethernet-based switch boards"]
["Manufacturing process 0) "]
[null,"Automatic affectation (as standard) of the I/O modules in the basic rack",null,null,null,null,null,null,null,null,null,null,null,null,null,null,null,null,null,null,null,null,"0"]
[null,"Preferred affectation (customized with extra cost) of the I/O modules in the basic rack",null,null,null,null,null,null,null,null,null,null,null,null,null,null,null,null,null,null,null,null,"1",null,null,null,null,null,null,null,null,null,null,null,null,null,null,null,null,null,null,null,null,null,null,null,null,null,null,null,null,null,null,null,null,null,null,null,null,null,null,"consult us"]
["Varnish I/O boards for installations demanding tropicalized conditions"]
[null,"No",null,null,null,null,null,null,null,null,null,null,null,null,null,null,null,null,null,null,null,null,null,null,"0"]
[null,"Yes",null,null,null,null,null,null,null,null,null,null,null,null,null,null,null,null,null,null,null,null,null,null,"1",null,null,null,null,null,null,null,null,null,null,null,null,null,null,null,null,null,null,null,null,null,null,null,null,null,null,null,null,null,null,null,null,null,null,null,null,"consult us"]
["Transducerless Measurements Unit - Direct measuring value acquisition: 4 CT + 5 VT 3) 5) ",null,null,null,null,null,null,null,null,null,null,null,null,null,null,null,null,null,null,null,null,null,null,null,null,null,null,null,null,null,null,null,null,null,null,null,null,null,null,null,null,null,null,null,null,null,null,null,null,null,null,null,null,null,null,null,null,null,null,null,null,"S=1 2)"]
[null,"Without",null,null,null,null,null,null,null,null,null,null,null,null,null,null,null,null,null,null,null,null,null,null,null,null,"0"]
[null,"with TMU220 ( measurement 4*I + 5*U) , Inom: 1 A / 5A, Vnom: 50 to 250 VAC  - and DSP200 Board  9) ",null,null,null,null,null,null,"S","-","M",null,null,null,null,null,null,null,null,null,null,null,null,null,null,null,"1"]
[null,"With TMU210 A01 (& DSP210)  : Vnom: 57 to 130 VAC,  Iph=1A, Ion=1A,   Io operating range= 0,1-40Ion  17) ",null,null,null,null,null,null,"S","-","M",null,null,null,null,null,null,null,null,null,null,null,null,null,null,null,"2",null,null,null,null,null,null,null,null,null,null,null,null,null,null,null,null,null,null,null,null,null,null,null,null,null,null,null,null,null,null,null,null,null,null,"DSP210 (common contacts) , Refer to note 20)"]
[null,"With TMU210 A01 (& DSP210)   : Vnom: 57 to 130 VAC,  Iph=1A, Ion=5A,   Io operating range= 0,1-40Ion  17) ",null,null,null,null,null,null,"S","-","M",null,null,null,null,null,null,null,null,null,null,null,null,null,null,null,"3",null,null,null,null,null,null,null,null,null,null,null,null,null,null,null,null,null,null,null,null,null,null,null,null,null,null,null,null,null,null,null,null,null,null,"DSP210 (common contacts) , Refer to note 20)"]
[null,"With TMU210 A01 (& DSP210)  : Vnom: 57 to 130 VAC,  Iph=5A, Ion=5A,   Io operating range= 0,1-40Ion  17) ",null,null,null,null,null,null,"S","-","M",null,null,null,null,null,null,null,null,null,null,null,null,null,null,null,"4",null,null,null,null,null,null,null,null,null,null,null,null,null,null,null,null,null,null,null,null,null,null,null,null,null,null,null,null,null,null,null,null,null,null,"DSP210 (common contacts) , Refer to note 20)"]
[null,"With TMU210 A01 (& DSP210)  : Vnom: 57 to 130 VAC,  Iph=5A, Ion=1A,   Io operating range= 0,1-40Ion  17) ",null,null,null,null,null,null,"S","-","M",null,null,null,null,null,null,null,null,null,null,null,null,null,null,null,"5",null,null,null,null,null,null,null,null,null,null,null,null,null,null,null,null,null,null,null,null,null,null,null,null,null,null,null,null,null,null,null,null,null,null,"DSP210 (common contacts) , Refer to note 20)"]
[null,"With TMU210 A02 (& DSP210)   : Vnom: 57 to 130 VAC,  Iph=1A, Ion=1A,   Io operating range= 0,01-8Ion   17) ",null,null,null,null,null,null,"S","-","M",null,null,null,null,null,null,null,null,null,null,null,null,null,null,null,"6",null,null,null,null,null,null,null,null,null,null,null,null,null,null,null,null,null,null,null,null,null,null,null,null,null,null,null,null,null,null,null,null,null,null,"DSP210 (common contacts) , Refer to note 20)"]
[null,"With TMU210 A02 (& DSP210)   : Vnom: 57 to 130 VAC,  Iph=1A, Ion=5A,   Io operating range= 0,01-8Ion   17) ",null,null,null,null,null,null,"S","-","M",null,null,null,null,null,null,null,null,null,null,null,null,null,null,null,"7",null,null,null,null,null,null,null,null,null,null,null,null,null,null,null,null,null,null,null,null,null,null,null,null,null,null,null,null,null,null,null,null,null,null,"DSP210 (common contacts) , Refer to note 20)"]
[null,"With TMU210 A02 (& DSP210)  : Vnom: 57 to 130 VAC,  Iph=5A, Ion=5A,   Io operating range=0,01-8Ion  17) ",null,null,null,null,null,null,"S","-","M",null,null,null,null,null,null,null,null,null,null,null,null,null,null,null,"8",null,null,null,null,null,null,null,null,null,null,null,null,null,null,null,null,null,null,null,null,null,null,null,null,null,null,null,null,null,null,null,null,null,null,"DSP210 (common contacts) , Refer to note 20)"]
[null,"With TMU210 A02 (& DSP210)  : Vnom: 57 to 130 VAC,  Iph=5A, Ion=1A,   Io operating range= 0,01-8Ion  17) ",null,null,null,null,null,null,"S","-","M",null,null,null,null,null,null,null,null,null,null,null,null,null,null,null,"9",null,null,null,null,null,null,null,null,null,null,null,null,null,null,null,null,null,null,null,null,null,null,null,null,null,null,null,null,null,null,null,null,null,null,"DSP210 (common contacts) , Refer to note 20)"]
[null,"With TMU210 A03 (& DSP210)   : Vnom: 57 to 130 VAC,  Iph=1A, Ion=1A,   Io operating range=0,002-1Ion   17) ",null,null,null,null,null,null,"S","-","M",null,null,null,null,null,null,null,null,null,null,null,null,null,null,null,"A",null,null,null,null,null,null,null,null,null,null,null,null,null,null,null,null,null,null,null,null,null,null,null,null,null,null,null,null,null,null,null,null,null,null,"DSP210 (common contacts) , Refer to note 20)"]
[null,"With TMU210 A03 (& DSP210)  : Vnom: 57 to 130 VAC,  Iph=1A, Ion=5A,   Io operating range=0,002-1Ion   17) ",null,null,null,null,null,null,"S","-","M",null,null,null,null,null,null,null,null,null,null,null,null,null,null,null,"B",null,null,null,null,null,null,null,null,null,null,null,null,null,null,null,null,null,null,null,null,null,null,null,null,null,null,null,null,null,null,null,null,null,null,"DSP210 (common contacts) , Refer to note 20)"]
[null,"With TMU210 A03 (& DSP210)  : Vnom: 57 to 130 VAC,  Iph=5A, Ion=5A,   Io operating range=0,002-1Ion  17) ",null,null,null,null,null,null,"S","-","M",null,null,null,null,null,null,null,null,null,null,null,null,null,null,null,"C",null,null,null,null,null,null,null,null,null,null,null,null,null,null,null,null,null,null,null,null,null,null,null,null,null,null,null,null,null,null,null,null,null,null,"DSP210 (common contacts) , Refer to note 20)"]
[null,"With TMU210 A03 (& DSP210)  : Vnom: 57 to 130 VAC,  Iph=5A, Ion=1A,   Io operating range=0,002-1Ion  17) ",null,null,null,null,null,null,"S","-","M",null,null,null,null,null,null,null,null,null,null,null,null,null,null,null,"D",null,null,null,null,null,null,null,null,null,null,null,null,null,null,null,null,null,null,null,null,null,null,null,null,null,null,null,null,null,null,null,null,null,null,"DSP210 (common contacts) , Refer to note 20)"]
[null,"With TMU210 A01 (& DSP211)  : Vnom: 57 to 130 VAC,  Iph=1A, Ion=1A,   Io operating range= 0,1-40Ion  17) ",null,null,null,null,null,null,"S","-","M",null,null,null,null,null,null,null,null,null,null,null,null,null,null,null,"G",null,null,null,null,null,null,null,null,null,null,null,null,null,null,null,null,null,null,null,null,null,null,null,null,null,null,null,null,null,null,null,null,null,null,"DSP211(independant Trip contacts)= TO BE PREFERED\n  Refer to note 20)"]
[null,"With TMU210 A01 (& DSP211)   : Vnom: 57 to 130 VAC,  Iph=1A, Ion=5A,   Io operating range= 0,1-40Ion  17) ",null,null,null,null,null,null,"S","-","M",null,null,null,null,null,null,null,null,null,null,null,null,null,null,null,"H",null,null,null,null,null,null,null,null,null,null,null,null,null,null,null,null,null,null,null,null,null,null,null,null,null,null,null,null,null,null,null,null,null,null,"DSP211(independant Trip contacts)= TO BE PREFERED\n  Refer to note 20)"]
[null,"With TMU210 A01 (& DSP211)  : Vnom: 57 to 130 VAC,  Iph=5A, Ion=5A,   Io operating range= 0,1-40Ion  17) ",null,null,null,null,null,null,"S","-","M",null,null,null,null,null,null,null,null,null,null,null,null,null,null,null,"J",null,null,null,null,null,null,null,null,null,null,null,null,null,null,null,null,null,null,null,null,null,null,null,null,null,null,null,null,null,null,null,null,null,null,"DSP211(independant Trip contacts)= TO BE PREFERED\n  Refer to note 20)"]
[null,"With TMU210 A01 (& DSP211)  : Vnom: 57 to 130 VAC,  Iph=5A, Ion=1A,   Io operating range= 0,1-40Ion  17) ",null,null,null,null,null,null,"S","-","M",null,null,null,null,null,null,null,null,null,null,null,null,null,null,null,"K",null,null,null,null,null,null,null,null,null,null,null,null,null,null,null,null,null,null,null,null,null,null,null,null,null,null,null,null,null,null,null,null,null,null,"DSP211(independant Trip contacts)= TO BE PREFERED\n  Refer to note 20)"]
[null,"With TMU210 A02 (& DSP211)   : Vnom: 57 to 130 VAC,  Iph=1A, Ion=1A,   Io operating range= 0,01-8Ion   17) ",null,null,null,null,null,null,"S","-","M",null,null,null,null,null,null,null,null,null,null,null,null,null,null,null,"L",null,null,null,null,null,null,null,null,null,null,null,null,null,null,null,null,null,null,null,null,null,null,null,null,null,null,null,null,null,null,null,null,null,null,"DSP211(independant Trip contacts)= TO BE PREFERED\n  Refer to note 20)"]
[null,"With TMU210 A02 (& DSP211)   : Vnom: 57 to 130 VAC,  Iph=1A, Ion=5A,   Io operating range= 0,01-8Ion   17) ",null,null,null,null,null,null,"S","-","M",null,null,null,null,null,null,null,null,null,null,null,null,null,null,null,"M",null,null,null,null,null,null,null,null,null,null,null,null,null,null,null,null,null,null,null,null,null,null,null,null,null,null,null,null,null,null,null,null,null,null,"DSP211(independant Trip contacts)= TO BE PREFERED\n  Refer to note 20)"]
[null,"With TMU210 A02 (& DSP211)  : Vnom: 57 to 130 VAC,  Iph=5A, Ion=5A,   Io operating range=0,01-8Ion  17) ",null,null,null,null,null,null,"S","-","M",null,null,null,null,null,null,null,null,null,null,null,null,null,null,null,"N",null,null,null,null,null,null,null,null,null,null,null,null,null,null,null,null,null,null,null,null,null,null,null,null,null,null,null,null,null,null,null,null,null,null,"DSP211(independant Trip contacts)= TO BE PREFERED\n  Refer to note 20)"]
[null,"With TMU210 A02 (& DSP211)  : Vnom: 57 to 130 VAC,  Iph=5A, Ion=1A,   Io operating range= 0,01-8Ion  17) ",null,null,null,null,null,null,"S","-","M",null,null,null,null,null,null,null,null,null,null,null,null,null,null,null,"P",null,null,null,null,null,null,null,null,null,null,null,null,null,null,null,null,null,null,null,null,null,null,null,null,null,null,null,null,null,null,null,null,null,null,"DSP211(independant Trip contacts)= TO BE PREFERED\n  Refer to note 20)"]
[null,"With TMU210 A03 (& DSP211)   : Vnom: 57 to 130 VAC,  Iph=1A, Ion=1A,   Io operating range=0,002-1Ion   17) ",null,null,null,null,null,null,"S","-","M",null,null,null,null,null,null,null,null,null,null,null,null,null,null,null,"Q",null,null,null,null,null,null,null,null,null,null,null,null,null,null,null,null,null,null,null,null,null,null,null,null,null,null,null,null,null,null,null,null,null,null,"DSP211(independant Trip contacts)= TO BE PREFERED\n  Refer to note 20)"]
[null,"With TMU210 A03 (& DSP211)  : Vnom: 57 to 130 VAC,  Iph=1A, Ion=5A,   Io operating range=0,002-1Ion   17) ",null,null,null,null,null,null,"S","-","M",null,null,null,null,null,null,null,null,null,null,null,null,null,null,null,"R",null,null,null,null,null,null,null,null,null,null,null,null,null,null,null,null,null,null,null,null,null,null,null,null,null,null,null,null,null,null,null,null,null,null,"DSP211(independant Trip contacts)= TO BE PREFERED\n  Refer to note 20)"]
[null,"With TMU210 A03 (& DSP211)  : Vnom: 57 to 130 VAC,  Iph=5A, Ion=5A,   Io operating range=0,002-1Ion  17) ",null,null,null,null,null,null,"S","-","M",null,null,null,null,null,null,null,null,null,null,null,null,null,null,null,"S",null,null,null,null,null,null,null,null,null,null,null,null,null,null,null,null,null,null,null,null,null,null,null,null,null,null,null,null,null,null,null,null,null,null,"DSP211(independant Trip contacts)= TO BE PREFERED\n  Refer to note 20)"]
[null,"With TMU210 A03 (& DSP211)  : Vnom: 57 to 130 VAC,  Iph=5A, Ion=1A,   Io operating range=0,002-1Ion  17) ",null,null,null,null,null,null,"S","-","M",null,null,null,null,null,null,null,null,null,null,null,null,null,null,null,"T",null,null,null,null,null,null,null,null,null,null,null,null,null,null,null,null,null,null,null,null,null,null,null,null,null,null,null,null,null,null,null,null,null,null,"DSP211(independant Trip contacts)= TO BE PREFERED\n  Refer to note 20)"]
[null,"With TMU210 A04 (& DSP211)  : Vnom: 57 to 130 VAC,  4* Ion=5A,   Io operating range =0,01-8Ion  17) ",null,null,null,null,null,null,"S","-","M",null,null,null,null,null,null,null,null,null,null,null,null,null,null,null,"U",null,null,null,null,null,null,null,null,null,null,null,null,null,null,null,null,null,null,null,null,null,null,null,null,null,null,null,null,null,null,null,null,null,null,"DSP211(independant Trip contacts)= TO BE PREFERED - for PCCN only\n  Refer to note 20)"]
[null,"With TMU210 A04 (& DSP211)  : Vnom: 57 to 130 VAC,  4*Ion=1A,   Io operating range =0,01-8Ion  17) ",null,null,null,null,null,null,"S","-","M",null,null,null,null,null,null,null,null,null,null,null,null,null,null,null,"V",null,null,null,null,null,null,null,null,null,null,null,null,null,null,null,null,null,null,null,null,null,null,null,null,null,null,null,null,null,null,null,null,null,null,"DSP211(independant Trip contacts)= TO BE PREFERED\n  Refer to note 20)"]
["Nominal wetting voltage for digital inputs (DIU200 or DIU211 or CCU200 or DSP21x(-) 18) )",null,null,null,null,null,null,null,null,null,null,null,null,null,null,null,null,null,null,null,null,null,null,null,null,null,null,null,null,null,null,null,null,null,null,null,null,null,null,null,null,null,null,null,null,null,null,null,null,null,null,null,null,null,null,null,null,null,null,null,null,"S=12)"]
[null,"VA,nom: 24 V DC (- to common) DIU200-A01 board or CCU200-A01 board or DSP21x-A01",null,null,null,null,null,null,null,null,null,null,null,null,null,null,null,null,null,null,null,null,null,null,null,null,null,null,"0"]
[null,"VA,nom: 48/60 V DC (- to common)  - DIU200-A02 board or CCU200-A02 board or DSP21x-A02",null,null,null,null,null,null,null,null,null,null,null,null,null,null,null,null,null,null,null,null,null,null,null,null,null,null,"1"]
[null,"VA,nom: 110/125 V DC (- to common) - DIU200-A03 board or CCU200-A03 board or DSP21x-A03",null,null,null,null,null,null,null,null,null,null,null,null,null,null,null,null,null,null,null,null,null,null,null,null,null,null,"2"]
[null,"VA,nom: 220 V DC (- to common) : DIU200-A04 board or CCU200-A04 board or DSP21x-A04",null,null,null,null,null,null,null,null,null,null,null,null,null,null,null,null,null,null,null,null,null,null,null,null,null,null,"3"]
[null,"VA,nom: 110-125 VDC (- to common)   - DIU200-A03 board or CCU200-A07 board \n          (input setted if >68%*Vn)  or DSP210-A03",null,null,null,null,null,null,null,null,null,null,null,null,null,null,null,null,null,null,null,null,null,null,null,null,null,null,"6",null,null,null,null,null,null,null,null,null,null,null,null,null,null,null,null,null,null,null,null,null,null,null,null,null,null,null,null,null,null,null,null,"consult us"]
[null,"VA,nom: 48 V DC (+  to common) -DIU220-A02 (+ to common)  or CCU200-A02 (- to common)  board or DSP21x-A02 (- to common)",null,null,null,null,null,null,null,null,null,null,null,null,null,null,null,null,null,null,null,null,null,null,null,null,null,null,"9",null,null,null,null,null,null,null,null,null,null,null,null,null,null,null,null,null,null,null,null,null,null,null,null,null,null,null,null,null,null,null,null,"consult us"]
[null,"VA,nom: 110-125V DC (+  to common) -DIU220-A03 (+ to common)  or CCU200-A03 (- to common)  board or DSP21x-A03 (- to common)",null,null,null,null,null,null,null,null,null,null,null,null,null,null,null,null,null,null,null,null,null,null,null,null,null,null,"A",null,null,null,null,null,null,null,null,null,null,null,null,null,null,null,null,null,null,null,null,null,null,null,null,null,null,null,null,null,null,null,null,"consult us"]
["Selection of \"voltage\"  for DIU200, DSP21x and multi-voltage CCU211 or DSP21x(-) 18) )"]
[null,"CCU211 : Multivoltage 24Vdc-> 250Vdc ; preset threshold : 17.4 VDC; also for DIU200-A02 and DSP21x-A02 (VA,nom: 48/60Vdc)  ",null,null,null,null,null,null,null,null,null,null,null,null,null,null,null,null,null,null,null,null,null,null,null,null,null,null,"C",null,null,null,null,null,null,null,null,null,null,null,null,null,null,null,null,null,null,null,null,null,null,null,null,null,null,null,null,null,null,null,null,"in case CCU211 is needed"]
[null,"CCU211 : Multivoltage 24Vdc-> 250Vdc ; preset threshold : 50 VDC;  also for DIU200-A03 and DSP21x-A03 (VA,nom: 110/125 VDC)  ",null,null,null,null,null,null,null,null,null,null,null,null,null,null,null,null,null,null,null,null,null,null,null,null,null,null,"D",null,null,null,null,null,null,null,null,null,null,null,null,null,null,null,null,null,null,null,null,null,null,null,null,null,null,null,null,null,null,null,null,"in case CCU211 is needed"]
[null,"CCU211 : Multivoltage 24Vdc-> 250Vdc ; preset threshold : 86 VDC ; also for DIU200-A04 and DSP21x-A04 (VA,nom: 220 VDC)  ",null,null,null,null,null,null,null,null,null,null,null,null,null,null,null,null,null,null,null,null,null,null,null,null,null,null,"E",null,null,null,null,null,null,null,null,null,null,null,null,null,null,null,null,null,null,null,null,null,null,null,null,null,null,null,null,null,null,null,null,"in case CCU211 is needed"]
["Digital inputs (16 DI) module, each with 16 digital inputs (DIU200A0x)   3) 22)",null,null,null,null,null,null,null,null,null,null,null,null,null,null,null,null,null,null,null,null,null,null,null,null,null,null,null,null,null,null,null,null,null,null,null,null,null,null,null,null,null,null,null,null,null,null,null,null,null,null,null,null,null,null,null,null,null,null,null,null,"S=12) "]
["16 optically insulated inputs in 8 isolated groups"]
[null,"DIU200 quantity = 0 to 4 or  6 for 40TE racks,  0 to 9,A,B,C,D,E or F  for 14 or 15 slots in 80TE racks",null,null,null,null,null,null,null,null,null,null,null,null,null,null,null,null,null,null,null,null,null,null,null,null,null,null,null,null,"X"]
["Multi tension-peak-current Digital inputs (16 DI) module, each with 16 digital inputs DIU211   3) 13) 22)",null,null,null,null,null,null,null,null,null,null,null,null,null,null,null,null,null,null,null,null,null,null,null,null,null,null,null,null,null,null,null,null,null,null,null,null,null,null,null,null,null,null,null,null,null,null,null,null,null,null,null,null,null,null,null,null,null,null,null,null,"S=12)"]
["16 optically insulated inputs in 8 isolated groups ; preset threshold= 17.4Vdc"]
[null,"DIU211 quantity = 0 to 4 or  6 for 40TE racks, =0 to 9,A,B,C,D,E or F  for 14 or 15 slots in 80TE racks",null,null,null,null,null,null,null,null,null,null,null,null,null,null,null,null,null,null,null,null,null,null,null,null,null,null,null,null,null,null,"X",null,null,null,null,null,null,null,null,null,null,null,null,null,null,null,null,null,null,null,null,null,null,null,null,null,null,null,"check 13) for thresholds and quantities"]
["Digital outputs (10 DO) module, each with 10 digital outputs (DOU201) 3) ",null,null,null,null,null,null,null,null,null,null,null,null,null,null,null,null,null,null,null,null,null,null,null,null,null,null,null,null,null,null,null,null,null,null,null,null,null,null,null,null,null,null,null,null,null,null,null,null,null,null,null,null,null,null,null,null,null,null,null,null,"S=12)"]
["8 outputs NO contacts and 2 outputs NO/NC contacts"]
[null,"DOU quantity = 0 to 4 or  6 for 40TE racks, =0 to 9,A,B,C,D,E or F  for 14 or 15 slots in 80TE racks",null,null,null,null,null,null,null,null,null,null,null,null,null,null,null,null,null,null,null,null,null,null,null,null,null,null,null,null,null,null,null,null,"X"]
["Mixed (8 DI + 4 DO) module each with 8 digital inputs and, 4 digital outputs4) (CCU200 or CCU211-Ref.2071732 ) 3) ",null,null,null,null,null,null,null,null,null,null,null,null,null,null,null,null,null,null,null,null,null,null,null,null,null,null,null,null,null,null,null,null,null,null,null,null,null,null,null,null,null,null,null,null,null,null,null,null,null,null,null,null,null,null,null,null,null,null,null,null,"S=12)"]
["8 optically insulated inputs (in 4 isolated groups) and 4 direct command relays (2 NO contacts)",null,null,null,null,null,null,null,null,null,null,null,null,null,null,null,null,null,null,null,null,null,null,null,null,null,null,null,null,null,null,null,null,null,null,null,null,null,null,null,null,null,null,null,null,null,null,null,null,null,null,null,null,null,null,null,null,null,null,null,null,"CCU211:, only with voltage codes : C, D or E"]
[null,"CCU quantity = 0 to 3 or  6 for 40TE racks, =0 to 9,A,B,C,D,E or F  for 13 or 15 slots in 80TE racks 19) ",null,null,null,null,null,null,null,null,null,null,null,null,null,null,null,null,null,null,null,null,null,null,null,null,null,null,null,null,null,null,null,null,null,null,"X",null,null,null,null,null,null,null,null,null,null,null,null,null,null,null,null,null,null,null,null,null,null,null,null,"Consult us for CCU-A07"]
["DC 4 Analog inputs module (C or V transducer connection) each with 4 analogue inputs (AIU201) 3) "]
["4 DC Analog Inputs in current or voltage (4 isolated groups) - Maximum of  6*AIU2xx in one case"]
[null,"AIU201 quantity = 0 to 4 or  6 for 40TE racks , =0 to 6 for 80TE racks",null,null,null,null,null,null,null,null,null,null,null,null,null,null,null,null,null,null,null,null,null,null,null,null,null,null,null,null,null,null,null,null,null,null,null,null,"X",null,null,null,null,null,null,null,null,null,null,null,null,null,null,null,null,null,null,null,null,null,null,"S=12)"]
["DC  8 Analog inputs module (Current),with 8 analogue inputs (AIU211)       3), 23)"]
["8 DC Analog Inputs in current (AIU211: 8 isolated channels) - Maximum of  6*AIU2xx in one case"]
[null,"AIU21x quantity = code 0 (=0 board) or code \"A\" to \"F\" for 1 to 6*AIU211 (code \"1\" to \"6\" for AIU210)",null,null,null,null,null,null,null,null,null,null,null,null,null,null,null,null,null,null,null,null,null,null,null,null,null,null,null,null,null,null,null,null,null,null,null,null,null,null,null,"X",null,null,null,null,null,null,null,null,null,null,null,null,null,null,null,null,null,null,null,"S=12), 24) Consult Mkg"]
["Analog output module (Currents) ,with 4 analogue ouputs (AOU200)    3), 16)"]
["4 Analog Outputs    (PACIS V4.5.5 or upper, and RTUs applications)"]
[null,"AOU200 quantity = 0 to 4  for 40TE racks , 0 to 4 for 80TE racks",null,null,null,null,null,null,null,null,null,null,null,null,null,null,null,null,null,null,null,null,null,null,null,null,null,null,null,null,null,null,null,null,null,null,null,null,null,null,null,null,null,"x",null,null,null,null,null,null,null,null,null,null,null,null,null,null,null,null,null,"S=12)"]
["Ethernet-based Switch Unit (SWU20x)3) ",null,null,null,null,null,null,null,null,null,null,null,null,null,null,null,null,null,null,null,null,null,null,null,null,null,null,null,null,null,null,null,null,null,null,null,null,null,null,null,null,null,null,null,null,null,null,null,null,null,null,null,null,null,null,null,null,null,null,null,null,"S=12)"]
[null,"Without",null,null,null,null,null,null,null,null,null,null,null,null,null,null,null,null,null,null,null,null,null,null,null,null,null,null,null,null,null,null,null,null,null,null,null,null,null,null,null,null,null,null,null,"0"]
[null,"SWU200 - With four 10/100BaseT Ethernet ports (RJ45)",null,null,null,null,null,null,null,null,null,null,null,null,null,null,null,null,null,null,null,null,null,null,null,null,null,null,null,null,null,null,null,null,null,null,null,null,null,null,null,null,null,null,null,"1"]
[null,"SWU202- With two 100BaseF MultiMode Ethernet ports (ST) and four 10/100BaseT Ethernet ports (RJ45)",null,null,null,null,null,null,null,null,null,null,null,null,null,null,null,null,null,null,null,null,null,null,null,null,null,null,null,null,null,null,null,null,null,null,null,null,null,null,null,null,null,null,null,"3"]
[null,"SWU204- With two 100BaseF MonoMode Ethernet ports (SC) and four 10/100BaseT Ethernet ports (RJ45)",null,null,null,null,null,null,null,null,null,null,null,null,null,null,null,null,null,null,null,null,null,null,null,null,null,null,null,null,null,null,null,null,null,null,null,null,null,null,null,null,null,null,null,"5"]
["Ethernet-based Switch Redundant Unit (SWR20x)3) -  For Ethernet Redunded Ring",null,null,null,null,null,null,null,null,null,null,null,null,null,null,null,null,null,null,null,null,null,null,null,null,null,null,null,null,null,null,null,null,null,null,null,null,null,null,null,null,null,null,null,null,null,null,null,null,null,null,null,null,null,null,null,null,null,null,null,null,"S=12)"]
[null,"SWR212 -With two 100BaseF MultiMode Ethernet ports (ST) + four 10/100BaseT Ethernet ports (RJ45) ",null,null,null,null,null,null,null,null,null,null,null,null,null,null,null,null,null,null,null,null,null,null,null,null,null,null,null,null,null,null,null,null,null,null,null,null,null,null,null,null,null,null,null,"6",null,null,null,null,null,null,null,null,null,null,null,null,null,null,null,"refer note 21)"]
[null,"SWR 214 -With two 100BaseF MonoMode Ethernet ports (SC) + four 10/100BaseT Ethernet ports (RJ45)",null,null,null,null,null,null,null,null,null,null,null,null,null,null,null,null,null,null,null,null,null,null,null,null,null,null,null,null,null,null,null,null,null,null,null,null,null,null,null,null,null,null,null,"7",null,null,null,null,null,null,null,null,null,null,null,null,null,null,null,"refer note 21)"]
["Ethernet-based Switch Dual Humming Unit (SWD20x)3) ",null,null,null,null,null,null,null,null,null,null,null,null,null,null,null,null,null,null,null,null,null,null,null,null,null,null,null,null,null,null,null,null,null,null,null,null,null,null,null,null,null,null,null,null,null,null,null,null,null,null,null,null,null,null,null,null,null,null,null,null,"S=12)"]
[null,"SWD212 - With two 100BaseF MultiMode Ethernet ports (ST) + four 10/100BaseT Ethernet ports (RJ45)",null,null,null,null,null,null,null,null,null,null,null,null,null,null,null,null,null,null,null,null,null,null,null,null,null,null,null,null,null,null,null,null,null,null,null,null,null,null,null,null,null,null,null,"A",null,null,null,null,null,null,null,null,null,null,null,null,null,null,null,"refer note 21)"]
[null,"SWD214 -With two 100BaseF MonoMode Ethernet ports (SC) + four 10/100BaseT Ethernet ports (RJ45)",null,null,null,null,null,null,null,null,null,null,null,null,null,null,null,null,null,null,null,null,null,null,null,null,null,null,null,null,null,null,null,null,null,null,null,null,null,null,null,null,null,null,null,"B",null,null,null,null,null,null,null,null,null,null,null,null,null,null,null,"refer note 21)"]
["Ethernet-based Switch RSTP Compatible Unit (SWS20x)3) ",null,null,null,null,null,null,null,null,null,null,null,null,null,null,null,null,null,null,null,null,null,null,null,null,null,null,null,null,null,null,null,null,null,null,null,null,null,null,null,null,null,null,null,null,null,null,null,null,null,null,null,null,null,null,null,null,null,null,null,null,"S=12)"]
[null,"SWS212 - With two 100BaseF MultiMode Ethernet ports (ST) + four 10/100BaseT Ethernet ports (RJ45) Ref.=2071988A01",null,null,null,null,null,null,null,null,null,null,null,null,null,null,null,null,null,null,null,null,null,null,null,null,null,null,null,null,null,null,null,null,null,null,null,null,null,null,null,null,null,null,null,"S",null,null,null,null,null,null,null,null,null,null,null,null,null,null,null,"refer note 21) "]
[null,"SWS214 -With two 100BaseF MonoMode Ethernet ports (SC) + four 10/100BaseT Ethernet ports (RJ45) Ref.=2071988A02",null,null,null,null,null,null,null,null,null,null,null,null,null,null,null,null,null,null,null,null,null,null,null,null,null,null,null,null,null,null,null,null,null,null,null,null,null,null,null,null,null,null,null,"T",null,null,null,null,null,null,null,null,null,null,null,null,null,null,null,"refer note 21) "]
["Ethernet-based Redundant Ethernet Unit PRP/HSR (REU2xx)3) ",null,null,null,null,null,null,null,null,null,null,null,null,null,null,null,null,null,null,null,null,null,null,null,null,null,null,null,null,null,null,null,null,null,null,null,null,null,null,null,null,null,null,null,null,null,null,null,null,null,null,null,null,null,null,null,null,null,null,null,null,"S=12)"]
[null,"REU202- Multimode : with 2*100BaseF MultiMode Eth. ports +1*10/100BaseT Eth. port (RJ45) Ref.=2072062A01",null,null,null,null,null,null,null,null,null,null,null,null,null,null,null,null,null,null,null,null,null,null,null,null,null,null,null,null,null,null,null,null,null,null,null,null,null,null,null,null,null,null,null,"U"]
[null,"REU203 - Mixt : with 1*100BaseF SingleMode +1*100BaseF MultiMode  Eth. ports +1*10/100BaseT Eth.ports (RJ45) Ref.=2072062A03",null,null,null,null,null,null,null,null,null,null,null,null,null,null,null,null,null,null,null,null,null,null,null,null,null,null,null,null,null,null,null,null,null,null,null,null,null,null,null,null,null,null,null,"V"]
[null,"REU204 - SingleMode: with  2* 100BaseF SingleMode Eth. ports+ 1*10/100BaseT Ethernet ports (RJ45) Ref.:2072062A02",null,null,null,null,null,null,null,null,null,null,null,null,null,null,null,null,null,null,null,null,null,null,null,null,null,null,null,null,null,null,null,null,null,null,null,null,null,null,null,null,null,null,null,"W"]
["Communications"]
["Ethernet-based SCADA communication protocol ( to upper levels SCADA, DCS, Master Station, ...)"]
[null,"Without",null,null,null,null,null,null,null,null,null,null,null,null,null,null,null,null,null,null,null,null,null,null,null,null,null,null,null,null,null,null,null,null,null,null,null,null,null,null,null,null,null,null,null,null,null,"0"]
[null,"IEC 60870-5-104",null,null,null,null,null,null,null,null,null,null,null,null,null,null,null,null,null,null,null,null,null,null,null,null,null,null,null,null,null,null,null,null,null,null,null,null,null,null,null,null,null,null,null,null,null,"1"]
["Legacy serial SCADA communication protocols (to upper levels: SCADA, DCS, Master station, etc) 10) "]
[null,"Without",null,null,null,null,null,null,null,null,null,null,null,null,null,null,null,null,null,null,null,null,null,null,null,null,null,null,null,null,null,null,null,null,null,null,null,null,null,null,null,null,null,null,null,null,null,null,null,"0"]
[null,"Up to two SCADA links in: IEC 60870-5-101, DNP3, Modbus",null,null,null,null,null,null,null,null,null,null,null,null,null,null,null,null,null,null,null,null,null,null,null,null,null,null,null,null,null,null,null,null,null,null,null,null,null,null,null,null,null,null,null,null,null,null,null,"1"]
["Legacy protocols / Decentralised Smart Terminal Block Interface 11) "]
[null,"None",null,null,null,null,null,null,null,null,null,null,null,null,null,null,null,null,null,null,null,null,null,null,null,null,null,null,null,null,null,null,null,null,null,null,null,null,null,null,null,null,null,null,null,null,null,null,null,null,null,"0"]
[null,"Up to 4 IEDs links - No acquisition from STBs",null,null,null,null,null,null,null,null,null,null,null,null,null,null,null,null,null,null,null,null,null,null,null,null,null,null,null,null,null,null,null,null,null,null,null,null,null,null,null,null,null,null,null,null,null,null,null,null,null,"1"]
[null,"with Comm to IEDs+ SBU200 boards number (code A to I (A:1board --> I :9 boards) Acquisition from Smart terminal Blocks DI&DO 25)",null,null,null,null,null,null,null,null,null,null,null,null,null,null,null,null,null,null,null,null,null,null,null,null,null,null,null,null,null,null,null,null,null,null,null,null,null,null,null,null,null,null,null,null,null,null,null,null,null,"X",null,null,null,null,null,null,null,null,null,"For all rack sizes"]
["PLC Automation"]
["User applications 6) "]
[null,"Disabled",null,null,null,null,null,null,null,null,null,null,null,null,null,null,null,null,null,null,null,null,null,null,null,null,null,null,null,null,null,null,null,null,null,null,null,null,null,null,null,null,null,null,null,null,null,null,null,null,null,null,null,"0"]
[null,"Enabled ISaGRAF run-time for Programmable Logic, Automation, etc.",null,null,null,null,null,null,null,null,null,null,null,null,null,null,null,null,null,null,null,null,null,null,null,null,null,null,null,null,null,null,null,null,null,null,null,null,null,null,null,null,null,null,null,null,null,null,null,null,null,null,null,"1"]
["Softwares version"]
["Specific software version 11) "]
[null,"No Software loaded",null,null,null,null,null,null,null,null,null,null,null,null,null,null,null,null,null,null,null,null,null,null,null,null,null,null,null,null,null,null,null,null,null,null,null,null,null,null,null,null,null,null,null,null,null,null,null,null,null,null,null,null,null,"N"]
[null,"Option CD3: No Software loaded, delivered with one CD-ROM including the C264 software (PACIS V3)",null,null,null,null,null,null,null,null,null,null,null,null,null,null,null,null,null,null,null,null,null,null,null,null,null,null,null,null,null,null,null,null,null,null,null,null,null,null,null,null,null,null,null,null,null,null,null,null,null,null,null,null,null,"C"]
[null,"Option CD4 : No Software loaded, delivered with one CD-ROM including the C264  software (PACIS V4)",null,null,null,null,null,null,null,null,null,null,null,null,null,null,null,null,null,null,null,null,null,null,null,null,null,null,null,null,null,null,null,null,null,null,null,null,null,null,null,null,null,null,null,null,null,null,null,null,null,null,null,null,null,"D"]
[null,"Option V4 : With the C264 current Software version loaded (for PACIS V4.xx) -No CD delivered",null,null,null,null,null,null,null,null,null,null,null,null,null,null,null,null,null,null,null,null,null,null,null,null,null,null,null,null,null,null,null,null,null,null,null,null,null,null,null,null,null,null,null,null,null,null,null,null,null,null,null,null,null,"R",null,null,null,null," Consult Mkg"]
[null,"Option V3 : With the C264 current Software version loaded (for PACIS V3.xx) -No CD delivered",null,null,null,null,null,null,null,null,null,null,null,null,null,null,null,null,null,null,null,null,null,null,null,null,null,null,null,null,null,null,null,null,null,null,null,null,null,null,null,null,null,null,null,null,null,null,null,null,null,null,null,null,null,"S"]
["Built in applications 6) "]
[null,"Disabled",null,null,null,null,null,null,null,null,null,null,null,null,null,null,null,null,null,null,null,null,null,null,null,null,null,null,null,null,null,null,null,null,null,null,null,null,null,null,null,null,null,null,null,null,null,null,null,null,null,null,null,null,null,null,null,"0"]
[null,"Synchrocheck/Autorecloser enabled",null,null,null,null,null,null,null,null,null,null,null,null,null,null,null,null,null,null,null,null,null,null,null,null,null,null,null,null,null,null,null,null,null,null,null,null,null,null,null,null,null,null,null,null,null,null,null,null,null,null,null,null,null,null,null,"1"]
[null,"iAVR Voltage regulation - Standard application (in 40T rack) - application loaded on CPU270",null,null,null,null,null,null,null,null,null,null,null,null,null,null,null,null,null,null,null,null,null,null,null,null,null,null,null,null,null,null,null,null,null,null,null,null,null,null,null,null,null,null,null,null,null,null,null,null,null,null,null,null,null,null,null,"S",null,null,null,"New !"]
[null,"iAVR Voltage regulation - Premium application (in 60T rack) - application loaded on CPU270",null,null,null,null,null,null,null,null,null,null,null,null,null,null,null,null,null,null,null,null,null,null,null,null,null,null,null,null,null,null,null,null,null,null,null,null,null,null,null,null,null,null,null,null,null,null,null,null,null,null,null,null,null,null,null,"P",null,null,null,"New !"]
[null,"iAVR Voltage regulation - \"Elite\" application (To be Defined) - application loaded on CPU270",null,null,null,null,null,null,null,null,null,null,null,null,null,null,null,null,null,null,null,null,null,null,null,null,null,null,null,null,null,null,null,null,null,null,null,null,null,null,null,null,null,null,null,null,null,null,null,null,null,null,null,null,null,null,null,"E",null,null,null,"Consult Marketing"]
["Cable Lenght for Detachable front Panel"]
[null,"No cable",null,null,null,null,null,null,null,null,null,null,null,null,null,null,null,null,null,null,null,null,null,null,null,null,null,null,null,null,null,null,null,null,null,null,null,null,null,null,null,null,null,null,null,null,null,null,null,null,null,null,null,null,null,null,null,null,null,"0"]
[null,"Cable For Detachable Front Panel : 3 m",null,null,null,null,null,null,null,null,null,null,null,null,null,null,null,null,null,null,null,null,null,null,null,null,null,null,null,null,null,null,null,null,null,null,null,null,null,null,null,null,null,null,null,null,null,null,null,null,null,null,null,null,null,null,null,null,null,"3"]
[]
["Associated equipments, Accesories, Softwares and Manuals"]
["Equipments :"]
[null,"Fitting a 19\" mounting rack",null,null,null,null,null,null,null,null,null,null,null,null,null,null,null,null,null,null,null,null,null,null,null,null,null,null,null,null,null,null,null,null,null,null,null,null,null,null,null,null,null,null,null,null,null,null,null,null,null,null,null,null,null,null,null,null,null,null,null,"FXOO21101"]
[null,"Wall Mounted Adaptater - for 40TE Racks (WMA 40TE) Ref = A00043409100031",null,null,null,null,null,null,null,null,null,null,null,null,null,null,null,null,null,null,null,null,null,null,null,null,null,null,null,null,null,null,null,null,null,null,null,null,null,null,null,null,null,null,null,null,null,null,null,null,null,null,null,null,null,null,null,null,null,null,null,"Consult us"]
[null,"Wall Mounted Adaptater - for 80TE Racks  - (under validation - Consult us)",null,null,null,null,null,null,null,null,null,null,null,null,null,null,null,null,null,null,null,null,null,null,null,null,null,null,null,null,null,null,null,null,null,null,null,null,null,null,null,null,null,null,null,null,null,null,null,null,null,null,null,null,null,null,null,null,null,null,null,"Consult us"]
[null,"Serial printer (80 columns) - 115/230 VAC ",null,null,null,null,null,null,null,null,null,null,null,null,null,null,null,null,null,null,null,null,null,null,null,null,null,null,null,null,null,null,null,null,null,null,null,null,null,null,null,null,null,null,null,null,null,null,null,null,null,null,null,null,null,null,null,null,null,null,null,"Consult us"]
[null,"Power supply inverter 48 VDC / 115/230 VAC ",null,null,null,null,null,null,null,null,null,null,null,null,null,null,null,null,null,null,null,null,null,null,null,null,null,null,null,null,null,null,null,null,null,null,null,null,null,null,null,null,null,null,null,null,null,null,null,null,null,null,null,null,null,null,null,null,null,null,null,"Consult us"]
[null,"Power supply inverter 125 VDC / 115/230 VAC ",null,null,null,null,null,null,null,null,null,null,null,null,null,null,null,null,null,null,null,null,null,null,null,null,null,null,null,null,null,null,null,null,null,null,null,null,null,null,null,null,null,null,null,null,null,null,null,null,null,null,null,null,null,null,null,null,null,null,null,"Consult us"]
[null,"Ethernet cable (crossed-Blue) for PC connection - 2m",null,null,null,null,null,null,null,null,null,null,null,null,null,null,null,null,null,null,null,null,null,null,null,null,null,null,null,null,null,null,null,null,null,null,null,null,null,null,null,null,null,null,null,null,null,null,null,null,null,null,null,null,null,null,null,null,null,null,null,"9565933"]
[null,"Ethernet cable (direct-Yellow) for Switch/Hub connection - 20cm",null,null,null,null,null,null,null,null,null,null,null,null,null,null,null,null,null,null,null,null,null,null,null,null,null,null,null,null,null,null,null,null,null,null,null,null,null,null,null,null,null,null,null,null,null,null,null,null,null,null,null,null,null,null,null,null,null,null,null,"9565934"]
[null,"Ethernet cable (direct-Yellow) for Switch/Hub connection - 2m",null,null,null,null,null,null,null,null,null,null,null,null,null,null,null,null,null,null,null,null,null,null,null,null,null,null,null,null,null,null,null,null,null,null,null,null,null,null,null,null,null,null,null,null,null,null,null,null,null,null,null,null,null,null,null,null,null,null,null,"9565935"]
[null,"Ethernet cable (direct-Yellow) for Switch/Hub connection - 3m",null,null,null,null,null,null,null,null,null,null,null,null,null,null,null,null,null,null,null,null,null,null,null,null,null,null,null,null,null,null,null,null,null,null,null,null,null,null,null,null,null,null,null,null,null,null,null,null,null,null,null,null,null,null,null,null,null,null,null,"9565936"]
[null,"RS232 cable  for PC<-> Front panel connection (3m)",null,null,null,null,null,null,null,null,null,null,null,null,null,null,null,null,null,null,null,null,null,null,null,null,null,null,null,null,null,null,null,null,null,null,null,null,null,null,null,null,null,null,null,null,null,null,null,null,null,null,null,null,null,null,null,null,null,null,null,"9565996"]
[null,"Cable for Detachable front Panel (3 m)",null,null,null,null,null,null,null,null,null,null,null,null,null,null,null,null,null,null,null,null,null,null,null,null,null,null,null,null,null,null,null,null,null,null,null,null,null,null,null,null,null,null,null,null,null,null,null,null,null,null,null,null,null,null,null,null,null,null,null,"2071098A04"]
[null,"Cable for direct connection of front Panel (30 cm)",null,null,null,null,null,null,null,null,null,null,null,null,null,null,null,null,null,null,null,null,null,null,null,null,null,null,null,null,null,null,null,null,null,null,null,null,null,null,null,null,null,null,null,null,null,null,null,null,null,null,null,null,null,null,null,null,null,null,null,"2071098A01"]
[null,"Clock synchoniser - DIN rail model / IRIG-B output",null,null,null,null,null,null,null,null,null,null,null,null,null,null,null,null,null,null,null,null,null,null,null,null,null,null,null,null,null,null,null,null,null,null,null,null,null,null,null,null,null,null,null,null,null,null,null,null,null,null,null,null,null,null,null,null,null,null,null,"Consult us"]
[null,"Clock synchoniser - 19\" mounting rack / IRIG-B output",null,null,null,null,null,null,null,null,null,null,null,null,null,null,null,null,null,null,null,null,null,null,null,null,null,null,null,null,null,null,null,null,null,null,null,null,null,null,null,null,null,null,null,null,null,null,null,null,null,null,null,null,null,null,null,null,null,null,null,"Consult us"]
[null,"Boards extractor",null,null,null,null,null,null,null,null,null,null,null,null,null,null,null,null,null,null,null,null,null,null,null,null,null,null,null,null,null,null,null,null,null,null,null,null,null,null,null,null,null,null,null,null,null,null,null,null,null,null,null,null,null,null,null,null,null,null,null,2070860]
[null,"Cache for empty I/O slots",null,null,null,null,null,null,null,null,null,null,null,null,null,null,null,null,null,null,null,null,null,null,null,null,null,null,null,null,null,null,null,null,null,null,null,null,null,null,null,null,null,null,null,null,null,null,null,null,null,null,null,null,null,null,null,null,null,null,null,2071038]
[null,"I/Os connectors  (24 points)",null,null,null,null,null,null,null,null,null,null,null,null,null,null,null,null,null,null,null,null,null,null,null,null,null,null,null,null,null,null,null,null,null,null,null,null,null,null,null,null,null,null,null,null,null,null,null,null,null,null,null,null,null,null,null,null,null,null,null,9565869]
[null,"Connectors  (3 points)",null,null,null,null,null,null,null,null,null,null,null,null,null,null,null,null,null,null,null,null,null,null,null,null,null,null,null,null,null,null,null,null,null,null,null,null,null,null,null,null,null,null,null,null,null,null,null,null,null,null,null,null,null,null,null,null,null,null,null,9566235]
["Softwares :"]
[null,"C264 Standalone Configuration tool - SCT  6) ",null,null,null,null,null,null,null,null,null,null,null,null,null,null,null,null,null,null,null,null,null,null,null,null,null,null,null,null,null,null,null,null,null,null,null,null,null,null,null,null,null,null,null,null,null,null,null,null,null,null,null,null,null,null,null,null,null,null,null,"Consult us"]
[null,"PACIS SCE Configuration tool 6) ",null,null,null,null,null,null,null,null,null,null,null,null,null,null,null,null,null,null,null,null,null,null,null,null,null,null,null,null,null,null,null,null,null,null,null,null,null,null,null,null,null,null,null,null,null,null,null,null,null,null,null,null,null,null,null,null,null,null,null,"Consult us"]
[null,"ISaGRAF software PLC Editor 6) ",null,null,null,null,null,null,null,null,null,null,null,null,null,null,null,null,null,null,null,null,null,null,null,null,null,null,null,null,null,null,null,null,null,null,null,null,null,null,null,null,null,null,null,null,null,null,null,null,null,null,null,null,null,null,null,null,null,null,null,"Consult us"]
[null,"PACIS SMT System Management tool 6) ",null,null,null,null,null,null,null,null,null,null,null,null,null,null,null,null,null,null,null,null,null,null,null,null,null,null,null,null,null,null,null,null,null,null,null,null,null,null,null,null,null,null,null,null,null,null,null,null,null,null,null,null,null,null,null,null,null,null,null,"Consult us"]
["Manuals :"]
[null,"Technical and Operation guides in English",null,null,null,null,null,null,null,null,null,null,null,null,null,null,null,null,null,null,null,null,null,null,null,null,null,null,null,null,null,null,null,null,null,null,null,null,null,null,null,null,null,null,null,null,null,null,null,null,null,null,null,null,null,null,null,null,null,null,null,"Consult us"]
[null,"Technical and Operation guides in French",null,null,null,null,null,null,null,null,null,null,null,null,null,null,null,null,null,null,null,null,null,null,null,null,null,null,null,null,null,null,null,null,null,null,null,null,null,null,null,null,null,null,null,null,null,null,null,null,null,null,null,null,null,null,null,null,null,null,null,"Consult us"]
[null,"Technical and Operation guides in Spanish",null,null,null,null,null,null,null,null,null,null,null,null,null,null,null,null,null,null,null,null,null,null,null,null,null,null,null,null,null,null,null,null,null,null,null,null,null,null,null,null,null,null,null,null,null,null,null,null,null,null,null,null,null,null,null,null,null,null,null,"Consult us"]
[null,"Technical and Operation guides in German",null,null,null,null,null,null,null,null,null,null,null,null,null,null,null,null,null,null,null,null,null,null,null,null,null,null,null,null,null,null,null,null,null,null,null,null,null,null,null,null,null,null,null,null,null,null,null,null,null,null,null,null,null,null,null,null,null,null,null,"Consult us"]
["CD-ROM documentation:"]
[null,"Technical and Operation guides - multilingual pdf documentations (English, French, Spanish and German)",null,null,null,null,null,null,null,null,null,null,null,null,null,null,null,null,null,null,null,null,null,null,null,null,null,null,null,null,null,null,null,null,null,null,null,null,null,null,null,null,null,null,null,null,null,null,null,null,null,null,null,null,null,null,null,null,null,null,null,"Consult us"]
["Remind of the CORTEC Code Synthesis : for export to Word documents :"]
[null,{"$f":"B7","v":"MiCOM C2649011"}]
["Legend:"]
[null,"No commercial availability - consult us for more info. "]
["0)","-C264 rack : with \"Switch SWxxx\" board or full of I/O boards : \n     Automatic affectation of slots : from \"C\" to \"P\" slot : SWX20x, AIU201, AIU211, DOU201, AOU200, free slots if any, CCU2xx, DIU211or DIU200, TMU220 \n     Warning : the Slot C remain free of board for C264 rack without switch and not full of I/Os.  \n-C264P rack (with TMU210 Protection ) : The Slot C is dedicated to the DSP21x Board. \n      Automatic affectation of slots : from \"D\" to \"P\" slot : SWX20x, AIU201, AIU211, DOU201, AOU200, free slots if any, CCU2xx, DIU211 or DIU200, TMU210 "]
[]
["1)","Different racks exist depending of user-selected CT/VT(TMU) & basic case size : N= nb of slots"]
[]
[]
[]
[null,"Remark : C264 with 60 TE rack is only availabla  with the Front Panel GHU202 (with LCD screen + Leds) "]
[]
["2)","Module slot size"]
["3)","The sum of slots (S) to receive modules must not exceed the maximum value N (available slots), indicated for each case separately"]
["4)","Output relays (2-pole) for switchgear operation"]
["5)","Required for Synchrocheck, disturbance recorder and direct measurements"]
["6)","According to specification "]
["7)","Voltage regulation needs UCA2 Ethernet-based communication"]
["8)","User-selected (factory setting underlined).\nFor BIU261 ( Dual Source) serial port, only the CORTEC CODE \"1\" or \"6\" are allowed ( code \"2\" Not applicable) ."]
["9)","Includes the DSP200 daughter board plugged in the CPU270/275 module"]
[null," - The DSP200 is based on the TMS320C6711, Floating-Point Digital Signal Processor (DSP)"]
["10)","The sum of communication links (legacy SCADA and IEDs) must not exceed the maximum communication ports available."]
["11)","For Specific Software version complete the Software CORTEC (sheet C264 SOFT)\nFor C264-R multirack applications, Select \" No software loaded\" "]
["12)","For Detachable Front panel, define the lenght of the required cable ; the Blind panel size depend on the Rack size."]
["13)","- DIU211 is  delivered in C264 racks in replacement of DIU210 from 08/2009  : With DIU211, the board number limitation (due to DIU210 consumption)is not applicable.\n- DIU211, when used in replacement of the DIU210, is configured with the following  preset threshold : input is set for V> 17.4V ;  (jumper on the \"48V\" indication, and usable with nominal voltages between 24Vdc and 220Vdc)"]
[]
["14)","for CPU260: consult Marketing"]
["15)"," BIU100 : commercialisation Stopped \n(was only in association to RPS280 , \nDo not exist for tropicalised /Varnished version\nWarning : specific EMC levels for this power supply - consult Marketing before use)"]
["16)","AOU200 board(4 Analog Outputs) is  compatible with the C264-R ( RTUs Multiracks ) and with the PACIS-V4 from V4.5.5 release.\nA maximum of 4 numbers of the AOU200 boards can be installed in C264/C264C racks "]
["17)","Restricted to be used on PACIS V4   Application ( Not for PACIS_V3 nor C264_R)\nIn case of TMU210 (Protection module) use, the associated DSP21x board takes 1 slot (Slot C). This \"C\" slot is not usable for the I/O Boards\n->So, the number of  available slots (for I/O boards and switches)  is of 3 in the C264C (40TE) Racks and  13 in the C264 (80 TE Rack)  "]
["18)","The DSP210/211 is delivered in association with the TMU210 Protection module ; Its voltage level is to be identical to the others CCU20x or DIU20x boards integrated in the same C264 rack. "]
["19)","Warning, for the CCU boards only  : In the C264 Racks equipped with a TMUxxx board (and because of the proximity of the slots)\nthe CCU board must not be installed in the slot adjacent to the TMU :\n-> not in slot F for 40TE rack (->maximum nb of CCU boards = 3)\n-> and not in slot P for the 80TE racks  (->maximum nb of CCU boards = 13)"]
["20)","Note : The TMU210 Protection module is only to be ordered with a Pacis System (and thru the Pacis tendering Tools). \nThe references \"1 to E\" are associated to DSP210 (Trip output contacts with common point)  Ref: 2071414 ;\nThe references \"G to T\"are associated to DSP211 (Independant Trip output contacts) Ref: 2071860\nDSP211 is to be prefered on all new projects ( DSP210 is about to be stopped) "]
["21)","Note : the Ethernet SNMP Manageable boards : SWR21x, SWD21x are progressively replacing the SWR20x, SWD20x in the C264 deliveries \nSWR21x and SWD21x Ethernet boards range  are fully compatible with the previous ones SWR20x, SWD20x.\nConsult us."]
["22)","The DIU200 has polarity\" -\" connected to \"common\" ; It can be mixed with DIU211 (positive or negative polarity)"]
["23)","AIUxxx : C264 80TE & 60TE  (resp. C264C-40TE) can be equipped with a maximum of  to 6 *AIU2xx (resp. 4*AIU2xx); "]
["24)","BIU261 (Dual Source PS) is only available for 48V-60Vdc (A02)  and 110-125Vdc (A03)"]
["25)","SBU200 : Maximum 9 SBU Board in 60T rackwithout CTVT ; Limit is of 7 Boards if rack is equipped with CT/VT.\n                    For 40TE, maximum 2 SBU boards can be fitted."]

{"sheet":"Configurator","index":2,"n_rows":62,"n_cols":30,"rows_kept":62,"cut":false,"hidden":false,"merged":[[2,0,2,2],[22,0,22,2],[26,7,26,16]]}
[null,null,null,null,null,null,null,null,null,null,null,null,null,null,null,null,null,null,null,null,null,null,null,null,null,null,null,"+AC:AC","+AC:AC","+AC:AC"]
["Order form configurator\nMiCOM C264\nReady-to-use configuration",null,null,null,"rack","GHU","lang","P.S","biu serial","cpu","biu serial",null,"Tropical","TMU","Voltage","DIU200","DIU211","DOU","CCU","AIU201","AIU211","AOU","SW",null,null,"IED/SBU200","ISaGRAF","Soft","Built In","detach"]
["Modular Computer for Bay Controller, RTU, PLC application",null,null,"C264",{"$f":"VLOOKUP(Tendering!$B$9,Database!$A$2:$C$7,3,FALSE)","v":"M"},{"$f":"VLOOKUP(Tendering!$B$10,Database!$A$9:$C$15,3,FALSE)","v":3},{"$f":"VLOOKUP(Tendering!$B$11,Database!$A$17:$C$20,3,FALSE)","v":1},{"$f":"VLOOKUP(Tendering!$B$13,Database!$A$24:$C$27,3,FALSE)","v":"A"},{"$f":"VLOOKUP(Tendering!$B$14,Database!$A$29:$C$31,3,FALSE)","v":1},{"$f":"VLOOKUP(Tendering!$B$15,Database!$A$33:$C$35,3,FALSE)","v":"9"},{"$f":"VLOOKUP(Tendering!$B$16,Database!$A$37:$C$39,3,FALSE)","v":1},0,{"$f":"VLOOKUP(Tendering!$B$18,Database!$A$41:$C$42,3,FALSE)","v":1},{"$f":"VLOOKUP(Tendering!$B$20,Database!$A$49:$C$62,3,FALSE)","v":"1"},{"$f":"VLOOKUP(Tendering!$B$21,Database!$A$64:$C$71,3,FALSE)","v":0},{"$f":"VLOOKUP(Tendering!$B$22,Database!$A$73:$C$88,3,FALSE)","v":1},{"$f":"VLOOKUP(Tendering!$B$23,Database!$A$90:$C$105,3,FALSE)","v":"1"},{"$f":"VLOOKUP(Tendering!$B$24,Database!$A$107:$C$122,3,FALSE)","v":"1"},{"$f":"VLOOKUP(Tendering!$B$25,Database!$A$124:$C$139,3,FALSE)","v":0},{"$f":"VLOOKUP(Tendering!$B$26,Database!$A$141:$C$147,3,FALSE)","v":"2"},{"$f":"VLOOKUP(Tendering!$B$27,Database!$A$152:$C$158,3,FALSE)","v":"B"},{"$f":"VLOOKUP(Tendering!$B$28,Database!$A$163:$C$167,3,FALSE)","v":"1"},{"$f":"VLOOKUP(Tendering!$B$29,Database!$A$175:$C$186,3,FALSE)","v":0},1,1,{"$f":"VLOOKUP(Tendering!$B$32,Database!$A$188:$C$197,3,FALSE)","v":1},{"$f":"VLOOKUP(Tendering!$B$33,Database!$A$199:$C$200,3,FALSE)","v":0},{"$f":"VLOOKUP(Tendering!$B$34,Database!$A$202:$C$205,3,FALSE)","v":"N"},{"$f":"VLOOKUP(Tendering!$B$35,Database!$A$207:$C$211,3,FALSE)","v":"S"},{"$f":"VLOOKUP(Tendering!$B$36,Database!$A$213:$C$214,3,FALSE)","v":0}]
["SAP PART NUMBER"]
["Basic Model and Components"]
["Package rack 4U (CAS2xx) + FBP2xx"]
[]
["Front panel (GHU2xx) - Schneider Electric"]
[]
["Language (including: Front panel labels, HMI)"]
[]
["Power supply and legacy ports (BIUxxx)"]
[]
[]
[{"$f":"IF(Database!$D$22=1,\"Factory setted legacy ports: port No.1 and No.2 on BIU241 board\",\"Factory setted legacy ports: port No.2 on BIU261 board\")","v":"Factory setted legacy ports: port No.1 and No.2 on BIU241 board"}]
[]
["CPU and Base Communications (CPU2x0)"]
["CPU270(Type3), with 2*Ethernet RJ45, 64Mb FlashMemory, 50ppm Oscillator accuracy"]
["For CPU with 2 serial links: Factory setted legacy ports No. 3/4"]
[]
["Inputs / outputs boards and Ethernet-based switch boards"]
["Manufacturing process"]
["Automatic affectation (as standard) of the I/O modules in the basic rack"]
["Varnish I/O boards for installations demanding tropicalized conditions"]
[]
["Transducerless Measurements Unit - Direct measuring value acquisition: 4 CT + 5 VT"]
[null,null,null,null,null,null,null,{"$f":"IF(Tendering!$AJ$19=3,\"NOTE : DSP211 is the Preferred option\",\" \")","v":" "}]
[]
[{"$f":"IF(Tendering!$B$21>5,\"Selection of voltage for DIU200, DSP21x and multi-voltage CCU211 or DSP21x (-)\",\"Nominal wetting voltage for digital inputs (DIU200 or DIU211 or CCU200 or DSP21x(-)\")","v":"Nominal wetting voltage for digital inputs (DIU200 or DIU211 or CCU200 or DSP21x(-)"}]
[]
["Digital inputs (16DI) module, each with 16 digital inputs (DIU200A0x)"]
[]
["Multi tension-peak-current Digital inputs (16 DI) module, each with 16 digital inputs DIU211"]
[]
["Digital outputs (10 DO) module, each with 10 digital outputs (DOU201)"]
[]
["Mixed (8 DI + 4 DO) module each with 8 digital inputs and, 4 digital outputs"]
[]
["DC 4 Analog inputs module (C or V transducer connection) each with 4 analogue inputs (AIU201)"]
[]
["DC 8 Analog inputs module (Current) each with 8 analogue inputs (AIU211)"]
[]
["Analog output module (Currents), with 4 analogue outputs (AOU200)"]
[]
[{"$f":"VLOOKUP(Tendering!$B$29,Database!$A$175:$D$186,4,FALSE)","v":"Ethernet-based Switch Unit (SWU20x)"}]
[]
["Communications"]
["Ethernet-based SCADA communication protocol (to upper levels SCADA, DCS, Master Station, ...)"]
["IEC 60870-5-104"]
["Legacy serial SCADA communication protocols (to upper levels: SCADA, DCS, Master Station, etc)"]
["Up to two SCADA links in: IEC 60870-5-101, DNP3, Modbus"]
["Legacy IED communication protocols / Decentralised Smart Terminal Block Interface"]
["Up to 4 IEDs links in: DNP3, MODBUS, IEC 60870-5-103, IEC 60870-5-101"]
["PLC Automation"]
["User applications"]
[]
["Softwares version"]
["Specific software version"]
[]
["Built in applications"]
[]
["Cable Length for Detachable Front Panel"]

{"sheet":"Master Text","index":3,"n_rows":62,"n_cols":1,"rows_kept":62,"cut":false,"hidden":false,"merged":[[27,0,27,3],[29,0,29,3],[31,0,31,3],[15,0,15,3],[5,0,5,3],[7,0,7,3],[9,0,9,3],[11,0,11,3],[13,0,13,3],[18,0,18,3],[23,0,23,3],[25,0,25,3],[53,0,53,3],[56,0,56,3],[58,0,58,3],[33,0,33,3],[35,0,35,3],[37,0,37,3],[39,0,39,3],[41,0,41,3],[43,0,43,3]]}
[{"$f":"CONCATENATE(Configurator!$D$3,Configurator!$E$3,Configurator!$F$3,Configurator!$G$3,Configurator!$H$3,Configurator!$I$3,Configurator!$J$3,Configurator!$K$3,Configurator!$L$3,Configurator!$M$3,Configurator!$N$3,Configurator!$O$3,Configurator!$P$3,Configurator!$Q$3,Configurator!$R$3,Configurator!$S$3,Configurator!$T$3,Configurator!$U$3,Configurator!$V$3,Configurator!$W$3,Configurator!$X$3,Configurator!$Y$3,Configurator!$Z$3,Configurator!$AA$3,Configurator!$AB$3,Configurator!$AC$3,Configurator!$AD$3)","v":"C264M31A191011011102B101110NS0"}]
[]
[{"$f":"Configurator!A3","v":"Modular Computer for Bay Controller, RTU, PLC application"}]
[]
["Basic Model and Components"]
[{"$f":"CONCATENATE(Configurator!$A$6,\" : \")","v":"Package rack 4U (CAS2xx) + FBP2xx : "}]
[{"$f":"CONCATENATE(\" \",VLOOKUP(Tendering!$B$9,Database!$A$2:$B$7,2,FALSE))","v":" Case 80 T for use with. CT/VT (Medium Size), IP20, pin-terminal connection, 14 slots"}]
[{"$f":"CONCATENATE(Configurator!$A$8,\" : \")","v":"Front panel (GHU2xx) - Schneider Electric : "}]
[{"$f":"CONCATENATE(\" \",VLOOKUP(Tendering!$B$10,Database!$A$9:$B$15,2,FALSE))","v":" Detachable Front Panel with Graphic Display 40TE (GHU200) + Simple Blind Front panel (GHU22x)"}]
[{"$f":"CONCATENATE(Configurator!$A$10,\" : \")","v":"Language (including: Front panel labels, HMI) : "}]
[{"$f":"CONCATENATE(\" \",VLOOKUP(Tendering!$B$11,Database!$A$17:$B$20,2,FALSE))","v":" English (English)"}]
[{"$f":"CONCATENATE(Configurator!$A$12,\", \",VLOOKUP(Tendering!$AJ$12,Database!$A$22:$B$23,2,FALSE),\" : \")","v":"Power supply and legacy ports (BIUxxx), about BIU241 : Vn +/- 20% - 2DI/2DO - 2*serial Ports (port no1 and port no2) : "}]
[{"$f":"CONCATENATE(\" \",VLOOKUP(Tendering!$B$13,Database!$A$24:$B$27,2,FALSE))","v":" BIU241-A01 : Va,nom 24Vdc / Nominal voltage for 2DI:24Vdc"}]
[{"$f":"CONCATENATE(Configurator!$A$15,\" : \")","v":"Factory setted legacy ports: port No.1 and No.2 on BIU241 board : "}]
[{"$f":"CONCATENATE(\" \",VLOOKUP(Tendering!$B$14,Database!$A$29:$B$31,2,FALSE))","v":" Port No.2 RS232 ; Port No.1 RS232"}]
[{"$f":"CONCATENATE(Configurator!$A$17,\" : \")","v":"CPU and Base Communications (CPU2x0) : "}]
[{"$f":"CONCATENATE(\" \",\"Power PC processor board with Ethernet port(s), 2 serial links, IRIGB input- CPU260-based\")","v":" Power PC processor board with Ethernet port(s), 2 serial links, IRIGB input- CPU260-based"}]
[{"$f":"CONCATENATE(\" \",Configurator!$A$18)","v":" CPU270(Type3), with 2*Ethernet RJ45, 64Mb FlashMemory, 50ppm Oscillator accuracy"}]
[{"$f":"CONCATENATE(Configurator!$A$19,\" : \")","v":"For CPU with 2 serial links: Factory setted legacy ports No. 3/4 : "}]
[{"$f":"CONCATENATE(\" \",VLOOKUP(Tendering!$B$16,Database!$A$37:$B$39,2,FALSE))","v":" Port No.3: RS232 (non isolated) ; Port No.4 RS232 (non isolated)"}]
[{"$f":"Configurator!A21","v":"Inputs / outputs boards and Ethernet-based switch boards"}]
["Manufacturing process :"]
[" Automatic affectation (as standard) of the I/O modules in the basic rack"]
[{"$f":"CONCATENATE(Configurator!$A$24,\" : \")","v":"Varnish I/O boards for installations demanding tropicalized conditions : "}]
[{"$f":"CONCATENATE(\" \",VLOOKUP(Tendering!$B$18,Database!$A$41:$B$42,2,FALSE))","v":" Yes"}]
[{"$f":"CONCATENATE(Configurator!$A$26,\" : \")","v":"Transducerless Measurements Unit - Direct measuring value acquisition: 4 CT + 5 VT : "}]
[{"$f":"CONCATENATE(\" \",VLOOKUP(Tendering!$AJ$19,Database!$A$44:$B$47,2,FALSE),\" \",VLOOKUP(Tendering!$B$20,Database!$A$49:$B$62,2,FALSE))","v":" With TMU220 (measurement 4*I + 5*U), Inom 1 A / 5 A, Vnom: 50 to 250 Vac - and DSP200 Board No Selection Required"}]
[{"$f":"CONCATENATE(Configurator!$A$29,\" : \")","v":"Nominal wetting voltage for digital inputs (DIU200 or DIU211 or CCU200 or DSP21x(-) : "}]
[{"$f":"CONCATENATE(\" \",VLOOKUP(Tendering!$B$21,Database!$A$64:$B$71,2,FALSE))","v":" VA,nom: 24VDC (-to common) DIU200-A01 board or CCU200-A01 board or DSP21x-A01"}]
[{"$f":"CONCATENATE(Configurator!$A$31,\" : \")","v":"Digital inputs (16DI) module, each with 16 digital inputs (DIU200A0x) : "}]
[{"$f":"CONCATENATE(\" \",VLOOKUP(Tendering!$B$22,Database!$A$73:$B$88,2,FALSE))","v":" 1 DIU200A0x module"}]
[{"$f":"CONCATENATE(Configurator!$A$33,\" : \")","v":"Multi tension-peak-current Digital inputs (16 DI) module, each with 16 digital inputs DIU211 : "}]
[{"$f":"CONCATENATE(\" \",VLOOKUP(Tendering!$B$23,Database!$A$90:$B$105,2,FALSE))","v":" 1 DIU211 module"}]
[{"$f":"CONCATENATE(Configurator!$A$35,\" : \")","v":"Digital outputs (10 DO) module, each with 10 digital outputs (DOU201) : "}]
[{"$f":"CONCATENATE(\" \",VLOOKUP(Tendering!$B$24,Database!$A$107:$B$122,2,FALSE))","v":" 1 DOU201 module"}]
[{"$f":"CONCATENATE(Configurator!$A$37,\" : \")","v":"Mixed (8 DI + 4 DO) module each with 8 digital inputs and, 4 digital outputs : "}]
[{"$f":"CONCATENATE(\" \",VLOOKUP(Tendering!$B$25,Database!$A$124:$B$139,2,FALSE))","v":" No Modules"}]
[{"$f":"CONCATENATE(Configurator!$A$39,\" : \")","v":"DC 4 Analog inputs module (C or V transducer connection) each with 4 analogue inputs (AIU201) : "}]
[{"$f":"CONCATENATE(\" \",VLOOKUP(Tendering!$B$26,Database!$A$141:$B$147,2,FALSE))","v":" 2 AIU201 modules"}]
[{"$f":"CONCATENATE(Configurator!$A$41,\" : \")","v":"DC 8 Analog inputs module (Current) each with 8 analogue inputs (AIU211) : "}]
[{"$f":"CONCATENATE(\" \",VLOOKUP(Tendering!$B$27,Database!$A$152:$B$158,2,FALSE))","v":" 2 AIU211 modules"}]
[{"$f":"CONCATENATE(Configurator!$A$43,\" : \")","v":"Analog output module (Currents), with 4 analogue outputs (AOU200) : "}]
[{"$f":"CONCATENATE(\" \",VLOOKUP(Tendering!$B$28,Database!$A$163:$B$167,2,FALSE))","v":" 1 AOU200 module"}]
[{"$f":"CONCATENATE(Configurator!$A$45,\" : \")","v":"Ethernet-based Switch Unit (SWU20x) : "}]
[{"$f":"CONCATENATE(\" \",VLOOKUP(Tendering!$B$29,Database!$A$175:$B$186,2,FALSE))","v":" Without"}]
["Communications"]
["Ethernet-based SCADA communication protocol (to upper levels SCADA, DCS, Master Station, ...) :"]
[" IEC 60870-5-104"]
["Legacy serial SCADA communication protocols (to upper levels: SCADA, DCS, Master Station, etc) :"]
[" Up to two SCADA links in: IEC 60870-5-101, DNP3, Modbus"]
["Legacy IED communication protocols (To lower levels: Relays, PLC, RTU, etc) :"]
[" Up to 4 IEDs links in: DNP3, MODBUS, IEC 60870-5-103, IEC 60870-5-101"]
["PLC Automation"]
[{"$f":"CONCATENATE(Configurator!$A$55,\" : \")","v":"User applications : "}]
[{"$f":"CONCATENATE(\" \",VLOOKUP(Tendering!$B$33,Database!$A$199:$B$200,2,FALSE))","v":" Disabled"}]
["Softwares version"]
[{"$f":"CONCATENATE(Configurator!$A$58,\" : \")","v":"Specific software version : "}]
[{"$f":"CONCATENATE(\" \",VLOOKUP(Tendering!$B$34,Database!$A$202:$B$205,2,FALSE))","v":" No Software loaded"}]
[{"$f":"CONCATENATE(Configurator!$A$60,\" : \")","v":"Built in applications : "}]
[{"$f":"CONCATENATE(\" \",VLOOKUP(Tendering!$B$35,Database!$A$207:$B$211,2,FALSE))","v":" iAVR Voltage regulation - Standard application (in 40T rack) - application loaded on CPU270"}]
["Cable Length for Detachable Front Panel"]
[{"$f":"CONCATENATE(\" \",VLOOKUP(Tendering!$B$36,Database!$A$213:$B$214,2,FALSE))","v":" No cable"}]

{"sheet":"Change Log","index":4,"n_rows":3,"n_cols":2,"rows_kept":3,"cut":false,"hidden":false,"merged":[]}
["2015-03-25","Original"]
["2017-07-05","CPU 275 added"]
["2017-07-05","SBU200 added"]

{"sheet":"Database","index":5,"n_rows":214,"n_cols":37,"rows_kept":214,"cut":false,"hidden":true,"merged":[]}
[]
[1,"Case 40 T for use wo. CT/VT (Compact Size), IP52, pin-terminal connection, 6 slots","C"]
[2,"Case 40 T for use with. CT/VT (Compact Size), IP52, pin-terminal connection, 4 slots","S"]
[3,"Case 80 T for use wo. CT/VT (Medium Size), IP20, pin-terminal connection, 15 slots","L"]
[4,"Case 80 T for use with. CT/VT (Medium Size), IP20, pin-terminal connection, 14 slots","M"]
[5,"Case 60 T for use wo. CT/VT (Medium Size), IP20, pin-terminal connection, 10 slots","T"]
[6,"Case 60 T for use with. CT/VT (Medium Size), IP20, pin-terminal connection, 9 slots","U"]
[]
[1,"Front Panel, Leds and L/R switch - IP52 protection - GHU210(40TE) or GHU211(80TE) or GHU212(60TE)",0]
[2,"Front Panel with Leds + Graphic Display LCD + L/R switch - GHU200(40TE) or GHU201(80TE) or GHU202(60TE)- IP52 prot",1]
[3,"Simple Blind front panel : GHU220 (40TE) or GHU221 (80TE) or GHU222 (60TE)",2]
[4,{"$f":"IF(Tendering!$B$9>4,\"\",Database!$E12)","v":"Detachable Front Panel with Graphic Display 40TE (GHU200) + Simple Blind Front panel (GHU22x)"},{"$f":"IF(Tendering!$B$9>4,2,Database!$O12)","v":3},null,"Detachable Front Panel with Graphic Display 40TE (GHU200) + Simple Blind Front panel (GHU22x)",null,null,null,null,null,null,null,null,null,3]
[5,{"$f":"IF(Tendering!$B$9>4,\"\",Database!$E13)","v":"Detachable Front Panel with Graphic Display 80TE (GHU201) + Simple Blind Front panel (GHU22x)"},{"$f":"IF(Tendering!$B$9>4,2,Database!$O13)","v":4},null,"Detachable Front Panel with Graphic Display 80TE (GHU201) + Simple Blind Front panel (GHU22x)",null,null,null,null,null,null,null,null,null,4]
[6,{"$f":"IF(Tendering!$B$9>4,\"\",Database!$E14)","v":"Detachable Front Panel with Leds 40TE (GHU210) + Simple Blind Front panel (GHU22x)"},{"$f":"IF(Tendering!$B$9>4,2,Database!$O14)","v":5},null,"Detachable Front Panel with Leds 40TE (GHU210) + Simple Blind Front panel (GHU22x)",null,null,null,null,null,null,null,null,null,5]
[7,{"$f":"IF(Tendering!$B$9>4,\"\",Database!$E15)","v":"Detachable Front Panel with Leds 80TE (GHU211) + Simple Blind Front panel (GHU22x)"},{"$f":"IF(Tendering!$B$9>4,2,Database!$O15)","v":6},null,"Detachable Front Panel with Leds 80TE (GHU211) + Simple Blind Front panel (GHU22x)",null,null,null,null,null,null,null,null,null,6]
[]
[1,"French (English)",0]
[2,"English (English)",1]
[3,"Spanish (English)",2]
[4,"German (English)",3]
[]
[1,"about BIU241 : Vn +/- 20% - 2DI/2DO - 2*serial Ports (port no1 and port no2)",1,{"$f":"VLOOKUP(Tendering!$AJ$12,Database!$A$22:$C$23,3,FALSE)","v":1}]
[2,"about BIU261 : Redundant/Double SOURCE (+/- 20%) - 2DI/2DO - 1*serial Port only",2]
[1,{"$f":"IF($D$22=1,\"BIU241-A01 : Va,nom 24Vdc / Nominal voltage for 2DI:24Vdc\",\"BIU261-A02 Va,nom : 48-60Vdc / Nominal voltage for 2DI : 48-60 Vdc\")","v":"BIU241-A01 : Va,nom 24Vdc / Nominal voltage for 2DI:24Vdc"},{"$f":"IF($D$22=1,\"A\",\"N\")","v":"A"}]
[2,{"$f":"IF($D$22=1,\"BIU241-A02 : Va,nom 48 to 60Vdc / Nominal voltage for 2DI: 48/60Vdc\",\"BIU261-A03 Va,nom : 110-125Vdc / Nominal voltage for 2DI : 110-125 Vdc\")","v":"BIU241-A02 : Va,nom 48 to 60Vdc / Nominal voltage for 2DI: 48/60Vdc"},{"$f":"IF($D$22=1,\"E\",\"P\")","v":"E"}]
[3,{"$f":"IF($D$22=1,\"BIU241-A03 : Va,nom 110 to 125Vdc / Nominal voltage for 2DI: 110/125Vdc\",\"BIU261-A04 Va,nom : 220Vdc / Nominal voltage for 2DI : 220 Vdc\")","v":"BIU241-A03 : Va,nom 110 to 125Vdc / Nominal voltage for 2DI: 110/125Vdc"},{"$f":"IF($D$22=1,\"I\",\"Q\")","v":"I"}]
[4,{"$f":"IF($D$22=1,\"BIU241-A04 : Va,nom 220Vdc and 115 to 230Vac / Nominal voltage for 2DI: 220Vdc\",\" \")","v":"BIU241-A04 : Va,nom 220Vdc and 115 to 230Vac / Nominal voltage for 2DI: 220Vdc"},{"$f":"IF($D$22=1,\"M\",\"Q\")","v":"M"}]
[]
[1,"Port No.2 RS232 ; Port No.1 RS232",1]
[2,{"$f":"IF($D$22=1,\"Port No.2 RS232 ; Port No.1 RS485\",\"Port No.2 RS485 ; Port No.1 RS485\")","v":"Port No.2 RS232 ; Port No.1 RS485"},{"$f":"IF($D$22=1,\"2\",\"6\")","v":"2"}]
[3,{"$f":"IF($D$22=1,\"Port No.2 RS485 ; Port No.1 RS485\",\" \")","v":"Port No.2 RS485 ; Port No.1 RS485"},{"$f":"IF($D$22=1,\"6\",\"6\")","v":"6"}]
[]
[1,"CPU270(Type3) , with 2*Ethernet RJ45, 64Mb FlashMemory, 128Mb SDRAM, 50ppm Oscillator  (Ref CPU270 = 2071590A01 )","9"]
[2,"CPU275 (Type 4) , with 2*Ethernet RJ45, 128Mb FlashMem, 256Mb SDRAM, 50 ppm Oscill (Ref CPU275 =2072282A01)","A"]
[3,"CPU275 (Type 4), with 2*Ethernet RJ45, 128Mb FlashMem, 256Mb SDRAM, 1 ppm Oscill (Ref CPU275 =2072282A02)","B"]
[]
[1,"Port No.3: RS232 (non isolated) ; Port No.4 RS232 (non isolated)",1]
[2,"Port No.3: RS485 (ECU201) ; Port No.4 RS485 (ECU201)",5]
[3,"Port No.3: Optical (ECU200) ; Port No.4 Optical (ECU200)",9]
[]
[1,"No",0]
[2,"Yes",1]
[]
[1,{"$f":"VLOOKUP($E$44,$E$46:$AC$51,2,FALSE)","v":"Without"},0,null,{"$f":"Configurator!$E$3","v":"M"}]
[2,{"$f":"VLOOKUP($E$44,$E$46:$AC$51,3,FALSE)","v":"With TMU220 (measurement 4*I + 5*U), Inom 1 A / 5 A, Vnom: 50 to 250 Vac - and DSP200 Board"},1,null,"Transducerless Measurement Unit"]
[3,{"$f":"VLOOKUP($E$44,$E$46:$AC$51,4,FALSE)","v":"With TMU210 A01 (& DSP210)  : Vnom 57 to 130 Vac"},2,null,"C","Without"," "," "," "]
[4,{"$f":"VLOOKUP($E$44,$E$46:$AC$51,5,FALSE)","v":"With TMU210 A01 (& DSP211)  : Vnom 57 to 130 Vac"},3,null,"S","Without","With TMU220 (measurement 4*I + 5*U), Inom 1 A / 5 A, Vnom: 50 to 250 Vac - and DSP200 Board","With TMU210 A01 (& DSP210)  : Vnom 57 to 130 Vac","With TMU210 A01 (& DSP211)  : Vnom 57 to 130 Vac"]
[null,null,null,null,"L","Without"," "," "," "]
[1,{"$f":"VLOOKUP($E$53,$E$55:$AG$58,2,FALSE)","v":"No Selection Required"},{"$f":"VLOOKUP($E$53,$E$55:$AG$58,16,FALSE)","v":"1"},null,"M","Without","With TMU220 (measurement 4*I + 5*U), Inom 1 A / 5 A, Vnom: 50 to 250 Vac - and DSP200 Board","With TMU210 A01 (& DSP210)  : Vnom 57 to 130 Vac","With TMU210 A01 (& DSP211)  : Vnom 57 to 130 Vac"]
[2,{"$f":"VLOOKUP($E$53,$E$55:$AG$58,3,FALSE)","v":" "},{"$f":"VLOOKUP($E$53,$E$55:$AG$58,17,FALSE)","v":"1"},null,"T","Without"," "," "," "]
[3,{"$f":"VLOOKUP($E$53,$E$55:$AG$58,4,FALSE)","v":" "},{"$f":"VLOOKUP($E$53,$E$55:$AG$58,18,FALSE)","v":"1"},null,"U","Without","With TMU220 (measurement 4*I + 5*U), Inom 1 A / 5 A, Vnom: 50 to 250 Vac - and DSP200 Board","With TMU210 A01 (& DSP210)  : Vnom 57 to 130 Vac","With TMU210 A01 (& DSP211)  : Vnom 57 to 130 Vac"]
[4,{"$f":"VLOOKUP($E$53,$E$55:$AG$58,5,FALSE)","v":" "},{"$f":"VLOOKUP($E$53,$E$55:$AG$58,19,FALSE)","v":"1"}]
[5,{"$f":"VLOOKUP($E$53,$E$55:$AG$58,6,FALSE)","v":" "},{"$f":"VLOOKUP($E$53,$E$55:$AG$58,20,FALSE)","v":"1"},null,{"$f":"IF(OR($E$44=\"S\",$E$44=\"M\",$E$44=\"U\"),Tendering!$AJ$19,1)","v":2}]
[6,{"$f":"VLOOKUP($E$53,$E$55:$AG$58,7,FALSE)","v":" "},{"$f":"VLOOKUP($E$53,$E$55:$AG$58,21,FALSE)","v":"1"},null,"Transducerless Measurement Unit"]
[7,{"$f":"VLOOKUP($E$53,$E$55:$AG$58,8,FALSE)","v":" "},{"$f":"VLOOKUP($E$53,$E$55:$AG$58,22,FALSE)","v":"1"},null,1,"No Selection Required"," "," "," "," "," "," "," "," "," "," "," ","","","0","0","0","0","0","0","0","0","0","0","0","0","0","0"]
[8,{"$f":"VLOOKUP($E$53,$E$55:$AG$58,9,FALSE)","v":" "},{"$f":"VLOOKUP($E$53,$E$55:$AG$58,23,FALSE)","v":"1"},null,2,"No Selection Required"," "," "," "," "," "," "," "," "," "," "," ","","","1","1","1","1","1","1","1","1","1","1","1","1","1","1"]
[9,{"$f":"VLOOKUP($E$53,$E$55:$AG$58,10,FALSE)","v":" "},{"$f":"VLOOKUP($E$53,$E$55:$AG$58,24,FALSE)","v":"1"},null,3,"Iph=1A, In=1A,   Io operating range= 0,1-40Ion ","Iph=1A, In=5A,   Io operating range= 0,1-40Ion ","Iph=5A, In=5A,   Io operating range= 0,1-40Ion ","Iph=5A, In=1A,   Io operating range= 0,1-40Ion ","Iph=1A, In=1A,   Io operating range= 0,01-8Ion ","Iph=1A, In=5A,   Io operating range= 0,01-8Ion ","Iph=5A, In=5A,   Io operating range=0,01-8Ion","Iph=5A, In=1A,   Io operating range= 0,01-8Ion ","Iph=1A, In=1A,   Io operating range=0,002-1Ion ","Iph=1A, In=5A,   Io operating range=0,002-1Ion  ","Iph=5A, In=5A,   Io operating range=0,002-1Ion ","Iph=5A, In=1A,   Io operating range=0,002-1Ion","","","2","3","4","5","6","7","8","9","A","B","C","D","D","D"]
[10,{"$f":"VLOOKUP($E$53,$E$55:$AG$58,11,FALSE)","v":" "},{"$f":"VLOOKUP($E$53,$E$55:$AG$58,25,FALSE)","v":"1"},null,4,"Iph=1A, In=1A,   Io operating range= 0,1-40Ion ","Iph=1A, In=5A,   Io operating range= 0,1-40Ion ","Iph=5A, In=5A,   Io operating range= 0,1-40Ion ","Iph=5A, In=1A,   Io operating range= 0,1-40Ion ","Iph=1A, In=1A,   Io operating range= 0,01-8Ion ","Iph=1A, In=5A,   Io operating range= 0,01-8Ion ","Iph=5A, In=5A,   Io operating range=0,01-8Ion","Iph=5A, In=1A,   Io operating range= 0,01-8Ion ","Iph=1A, In=1A,   Io operating range=0,002-1Ion ","Iph=1A, In=5A,   Io operating range=0,002-1Ion  ","Iph=5A, In=5A,   Io operating range=0,002-1Ion ","Iph=5A, In=1A,   Io operating range=0,002-1Ion"," 4* Ion=5A,   Io operating range =0,01-8Ion"," 4* Ion=1A,   Io operating range =0,01-8Ion","G","H","J","K","L","M","N","P","Q","R","S","T","U","V"]
[11,{"$f":"VLOOKUP($E$53,$E$55:$AG$58,12,FALSE)","v":" "},{"$f":"VLOOKUP($E$53,$E$55:$AG$58,26,FALSE)","v":"1"}]
[12,{"$f":"VLOOKUP($E$53,$E$55:$AG$58,13,FALSE)","v":" "},{"$f":"VLOOKUP($E$53,$E$55:$AG$58,27,FALSE)","v":"1"}]
[13,{"$f":"VLOOKUP($E$53,$E$55:$AG$58,14,FALSE)","v":""},{"$f":"VLOOKUP($E$53,$E$55:$AG$58,28,FALSE)","v":"1"}]
[14,{"$f":"VLOOKUP($E$53,$E$55:$AG$58,15,FALSE)","v":""},{"$f":"VLOOKUP($E$53,$E$55:$AG$58,29,FALSE)","v":"1"}]
[]
[1,"VA,nom: 24VDC (-to common) DIU200-A01 board or CCU200-A01 board or DSP21x-A01",0]
[2,"VA,nom: 48/60VDC (-to common) - DIU200-A02 board or CCU200-A02 board or DSP21x-A02",1]
[3,"VA,nom: 110/125VDC (-to common) - DIU200-A03 board or CCU200-A03 board or DSP21x-A03",2]
[4,"VA,nom: 220VDC  (-to common) : DIU200-A04 board or CCU200-A04 board or DSP21x-A04",3]
[5,"VA,nom: 110-125VDC (-to common) - DIU200-A03 board or CCU200-A07 board (input setted if >68%*Vn) or DSP210-A03",6]
[6,"CCU211: Multivoltage 24Vdc-> 250Vdc ; preset threshold : 17.4 VDC; also for DIU200-A02 and DSP21x-A02 (VA,nom: 48/60Vdc)","C"]
[7,"CCU211: Multivoltage 24Vdc-> 250Vdc ; preset threshold : 50 VDC; also for DIU200-A03 and DSP21x-A03 (VA,nom: 110/125Vdc)","D"]
[8,"CCU211: Multivoltage 24Vdc-> 250Vdc ; preset threshold : 86 VDC; also for DIU200-A04 and DSP21x-A04 (VA,nom: 220Vdc)","E"]
[]
[1,{"$f":"VLOOKUP($E$73,$E$74:$AK$80,2,FALSE)","v":"No Modules"},{"$f":"VLOOKUP($E$73,$E$74:$AK$80,18,FALSE)","v":0},null,{"$f":"Configurator!$E$3","v":"M"}]
[2,{"$f":"VLOOKUP($E$73,$E$74:$AK$80,3,FALSE)","v":"1 DIU200A0x module"},{"$f":"VLOOKUP($E$73,$E$74:$AK$80,19,FALSE)","v":1},"Max"]
[3,{"$f":"VLOOKUP($E$73,$E$74:$AK$80,4,FALSE)","v":"2 DIU200A0x modules"},{"$f":"VLOOKUP($E$73,$E$74:$AK$80,20,FALSE)","v":2},6,"C","No Modules","1 DIU200A0x module","2 DIU200A0x modules","3 DIU200A0x modules","4 DIU200A0x modules","5 DIU200A0x modules","6 DIU200A0x modules"," "," "," "," "," "," "," "," "," ",0,1,2,3,4,5,6,6,6,6,6,6,6,6,6,6]
[4,{"$f":"VLOOKUP($E$73,$E$74:$AK$80,5,FALSE)","v":"3 DIU200A0x modules"},{"$f":"VLOOKUP($E$73,$E$74:$AK$80,21,FALSE)","v":3},{"$f":"4-ABS($E$53>2)-$E$174","v":4},"S","No Modules","1 DIU200A0x module","2 DIU200A0x modules","3 DIU200A0x modules","4 DIU200A0x modules"," "," "," "," "," "," "," "," "," "," "," ",0,1,2,3,4,4,4,4,4,4,4,4,4,4,4,4]
[5,{"$f":"VLOOKUP($E$73,$E$74:$AK$80,6,FALSE)","v":"4 DIU200A0x modules"},{"$f":"VLOOKUP($E$73,$E$74:$AK$80,22,FALSE)","v":4},15,"L","No Modules","1 DIU200A0x module","2 DIU200A0x modules","3 DIU200A0x modules","4 DIU200A0x modules","5 DIU200A0x modules","6 DIU200A0x modules","7 DIU200A0x modules","8 DIU200A0x modules","9 DIU200A0x modules","10 DIU200A0x modules","11 DIU200A0x modules","12 DIU200A0x modules","13 DIU200A0x modules","14 DIU200A0x modules","15 DIU200A0x modules",0,1,2,3,4,5,6,7,8,9,"A","B","C","D","E","F"]
[6,{"$f":"VLOOKUP($E$73,$E$74:$AK$80,7,FALSE)","v":"5 DIU200A0x modules"},{"$f":"VLOOKUP($E$73,$E$74:$AK$80,23,FALSE)","v":5},{"$f":"14-ABS($E$53>2)-$E$174","v":14},"M","No Modules","1 DIU200A0x module","2 DIU200A0x modules","3 DIU200A0x modules","4 DIU200A0x modules","5 DIU200A0x modules","6 DIU200A0x modules","7 DIU200A0x modules","8 DIU200A0x modules","9 DIU200A0x modules","10 DIU200A0x modules","11 DIU200A0x modules","12 DIU200A0x modules","13 DIU200A0x modules","14 DIU200A0x modules"," ",0,1,2,3,4,5,6,7,8,9,"A","B","C","D","E","E"]
[7,{"$f":"VLOOKUP($E$73,$E$74:$AK$80,8,FALSE)","v":"6 DIU200A0x modules"},{"$f":"VLOOKUP($E$73,$E$74:$AK$80,24,FALSE)","v":6},10,"T","No Modules","1 DIU200A0x module","2 DIU200A0x modules","3 DIU200A0x modules","4 DIU200A0x modules","5 DIU200A0x modules","6 DIU200A0x modules","7 DIU200A0x modules","8 DIU200A0x modules","9 DIU200A0x modules","10 DIU200A0x modules"," "," "," "," "," ",0,1,2,3,4,5,6,7,8,9,"A","A","A","A","A","A"]
[8,{"$f":"VLOOKUP($E$73,$E$74:$AK$80,9,FALSE)","v":"7 DIU200A0x modules"},{"$f":"VLOOKUP($E$73,$E$74:$AK$80,25,FALSE)","v":7},{"$f":"9-ABS($E$53>2)-$E$174","v":9},"U","No Modules","1 DIU200A0x module","2 DIU200A0x modules","3 DIU200A0x modules","4 DIU200A0x modules","5 DIU200A0x modules","6 DIU200A0x modules","7 DIU200A0x modules","8 DIU200A0x modules","9 DIU200A0x modules"," "," "," "," "," "," ",0,1,2,3,4,5,6,7,8,9,9,9,9,9,9,9]
[9,{"$f":"VLOOKUP($E$73,$E$74:$AK$80,10,FALSE)","v":"8 DIU200A0x modules"},{"$f":"VLOOKUP($E$73,$E$74:$AK$80,26,FALSE)","v":8}]
[10,{"$f":"VLOOKUP($E$73,$E$74:$AK$80,11,FALSE)","v":"9 DIU200A0x modules"},{"$f":"VLOOKUP($E$73,$E$74:$AK$80,27,FALSE)","v":9}]
[11,{"$f":"VLOOKUP($E$73,$E$74:$AK$80,12,FALSE)","v":"10 DIU200A0x modules"},{"$f":"VLOOKUP($E$73,$E$74:$AK$80,28,FALSE)","v":"A"},"Cards #",{"$f":"VLOOKUP(Tendering!$B$22,Database!$A$73:$C$88,1,FALSE)-1","v":1}]
[12,{"$f":"VLOOKUP($E$73,$E$74:$AK$80,13,FALSE)","v":"11 DIU200A0x modules"},{"$f":"VLOOKUP($E$73,$E$74:$AK$80,29,FALSE)","v":"B"}]
[13,{"$f":"VLOOKUP($E$73,$E$74:$AK$80,14,FALSE)","v":"12 DIU200A0x modules"},{"$f":"VLOOKUP($E$73,$E$74:$AK$80,30,FALSE)","v":"C"}]
[14,{"$f":"VLOOKUP($E$73,$E$74:$AK$80,15,FALSE)","v":"13 DIU200A0x modules"},{"$f":"VLOOKUP($E$73,$E$74:$AK$80,31,FALSE)","v":"D"}]
[15,{"$f":"VLOOKUP($E$73,$E$74:$AK$80,16,FALSE)","v":"14 DIU200A0x modules"},{"$f":"VLOOKUP($E$73,$E$74:$AK$80,32,FALSE)","v":"E"}]
[16,{"$f":"VLOOKUP($E$73,$E$74:$AK$80,17,FALSE)","v":" "},{"$f":"VLOOKUP($E$73,$E$74:$AK$80,33,FALSE)","v":"E"}]
[]
[1,{"$f":"VLOOKUP($E$90,$E$91:$AK$97,2,FALSE)","v":"No Modules"},{"$f":"VLOOKUP($E$90,$E$91:$AK$97,18,FALSE)","v":0},null,{"$f":"Configurator!$E$3","v":"M"}]
[2,{"$f":"VLOOKUP($E$90,$E$91:$AK$97,3,FALSE)","v":"1 DIU211 module"},{"$f":"VLOOKUP($E$90,$E$91:$AK$97,19,FALSE)","v":"1"},"Max"]
[3,{"$f":"VLOOKUP($E$90,$E$91:$AK$97,4,FALSE)","v":"2 DIU211 modules"},{"$f":"VLOOKUP($E$90,$E$91:$AK$97,20,FALSE)","v":"2"},{"$f":"$D75-$E$83","v":5},"C","No Modules",{"$f":"IF($D92>0,\"1 DIU211 module\",\" \")","v":"1 DIU211 module"},{"$f":"IF($D92>1,\"2 DIU211 modules\",\" \")","v":"2 DIU211 modules"},{"$f":"IF($D92>2,\"3 DIU211 modules\",\" \")","v":"3 DIU211 modules"},{"$f":"IF($D92>3,\"4 DIU211 modules\",\" \")","v":"4 DIU211 modules"},{"$f":"IF($D92>4,\"5 DIU211 modules\",\" \")","v":"5 DIU211 modules"},{"$f":"IF($D92>5,\"6 DIU211 modules\",\" \")","v":" "}," "," "," "," "," "," "," "," "," ",0,{"$f":"IF($D92>0,\"1\",V92)","v":"1"},{"$f":"IF($D92>1,\"2\",W92)","v":"2"},{"$f":"IF($D92>2,\"3\",X92)","v":"3"},{"$f":"IF($D92>3,\"4\",Y92)","v":"4"},{"$f":"IF($D92>4,\"5\",Z92)","v":"5"},{"$f":"IF($D92>5,\"6\",AA92)","v":"5"},{"$f":"AB92","v":"5"},{"$f":"AC92","v":"5"},"5","5","5","5","5","5","5"]
[4,{"$f":"VLOOKUP($E$90,$E$91:$AK$97,5,FALSE)","v":"3 DIU211 modules"},{"$f":"VLOOKUP($E$90,$E$91:$AK$97,21,FALSE)","v":"3"},{"$f":"$D76-$E$83","v":3},"S","No Modules","1 DIU211 module","2 DIU211 modules","3 DIU211 modules"," "," "," "," "," "," "," "," "," "," "," "," ",0,"1","2","3","3",{"$f":"Z93","v":"3"},{"$f":"AA93","v":"3"},{"$f":"AB93","v":"3"},{"$f":"AC93","v":"3"},"3","3","3","3","3","3","3"]
[5,{"$f":"VLOOKUP($E$90,$E$91:$AK$97,6,FALSE)","v":"4 DIU211 modules"},{"$f":"VLOOKUP($E$90,$E$91:$AK$97,22,FALSE)","v":"4"},14,"L","No Modules","1 DIU211 module","2 DIU211 modules","3 DIU211 modules","4 DIU211 modules",{"$f":"IF($D94>4,\"5 DIU211 modules\",\" \")","v":"5 DIU211 modules"},{"$f":"IF($D94>5,\"6 DIU211 modules\",\" \")","v":"6 DIU211 modules"},{"$f":"IF($D94>6,\"7 DIU211 modules\",\" \")","v":"7 DIU211 modules"},{"$f":"IF($D94>7,\"8 DIU211 modules\",\" \")","v":"8 DIU211 modules"},{"$f":"IF($D94>8,\"9 DIU211 modules\",\" \")","v":"9 DIU211 modules"},{"$f":"IF($D94>9,\"10 DIU211 modules\",\" \")","v":"10 DIU211 modules"},{"$f":"IF($D94>10,\"11 DIU211 modules\",\" \")","v":"11 DIU211 modules"},{"$f":"IF($D94>11,\"12 DIU211 modules\",\" \")","v":"12 DIU211 modules"},{"$f":"IF($D94>12,\"13 DIU211 modules\",\" \")","v":"13 DIU211 modules"},{"$f":"IF($D94>13,\"14 DIU211 modules\",\" \")","v":"14 DIU211 modules"},{"$f":"IF($D94>14,\"15 DIU211 modules\",\" \")","v":" "},0,"1","2","3","4",{"$f":"IF($D94>4,\"5\",Z94)","v":"5"},{"$f":"IF($D94>5,\"6\",AA94)","v":"6"},{"$f":"IF($D94>6,\"7\",AB94)","v":"7"},{"$f":"IF($D94>7,\"8\",AC94)","v":"8"},{"$f":"IF($D94>8,\"9\",AD94)","v":"9"},{"$f":"IF($D94>9,\"A\",AE94)","v":"A"},{"$f":"IF($D94>10,\"B\",AF94)","v":"B"},{"$f":"IF($D94>11,\"C\",AG94)","v":"C"},{"$f":"IF($D94>12,\"D\",AH94)","v":"D"},{"$f":"IF($D94>13,\"E\",AI94)","v":"E"},{"$f":"IF($D94>14,\"F\",AJ94)","v":"E"}]
[6,{"$f":"VLOOKUP($E$90,$E$91:$AK$97,7,FALSE)","v":"5 DIU211 modules"},{"$f":"VLOOKUP($E$90,$E$91:$AK$97,23,FALSE)","v":"5"},13,"M","No Modules","1 DIU211 module","2 DIU211 modules","3 DIU211 modules","4 DIU211 modules",{"$f":"IF($D95>4,\"5 DIU211 modules\",\" \")","v":"5 DIU211 modules"},{"$f":"IF($D95>5,\"6 DIU211 modules\",\" \")","v":"6 DIU211 modules"},{"$f":"IF($D95>6,\"7 DIU211 modules\",\" \")","v":"7 DIU211 modules"},{"$f":"IF($D95>7,\"8 DIU211 modules\",\" \")","v":"8 DIU211 modules"},{"$f":"IF($D95>8,\"9 DIU211 modules\",\" \")","v":"9 DIU211 modules"},{"$f":"IF($D95>9,\"10 DIU211 modules\",\" \")","v":"10 DIU211 modules"},{"$f":"IF($D95>10,\"11 DIU211 modules\",\" \")","v":"11 DIU211 modules"},{"$f":"IF($D95>11,\"12 DIU211 modules\",\" \")","v":"12 DIU211 modules"},{"$f":"IF($D95>12,\"13 DIU211 modules\",\" \")","v":"13 DIU211 modules"},{"$f":"IF($D95>13,\"14 DIU211 modules\",\" \")","v":" "}," ",0,"1","2","3","4",{"$f":"IF($D95>4,\"5\",Z95)","v":"5"},{"$f":"IF($D95>5,\"6\",AA95)","v":"6"},{"$f":"IF($D95>6,\"7\",AB95)","v":"7"},{"$f":"IF($D95>7,\"8\",AC95)","v":"8"},{"$f":"IF($D95>8,\"9\",AD95)","v":"9"},{"$f":"IF($D95>9,\"A\",AE95)","v":"A"},{"$f":"IF($D95>10,\"B\",AF95)","v":"B"},{"$f":"IF($D95>11,\"C\",AG95)","v":"C"},{"$f":"IF($D95>12,\"D\",AH95)","v":"D"},{"$f":"IF($D95>13,\"E\",AI95)","v":"D"},{"$f":"AJ95","v":"D"}]
[7,{"$f":"VLOOKUP($E$90,$E$91:$AK$97,8,FALSE)","v":"6 DIU211 modules"},{"$f":"VLOOKUP($E$90,$E$91:$AK$97,24,FALSE)","v":"6"},9,"T","No Modules","1 DIU211 module","2 DIU211 modules","3 DIU211 modules","4 DIU211 modules",{"$f":"IF($D96>4,\"5 DIU211 modules\",\" \")","v":"5 DIU211 modules"},{"$f":"IF($D96>5,\"6 DIU211 modules\",\" \")","v":"6 DIU211 modules"},{"$f":"IF($D96>6,\"7 DIU211 modules\",\" \")","v":"7 DIU211 modules"},{"$f":"IF($D96>7,\"8 DIU211 modules\",\" \")","v":"8 DIU211 modules"},{"$f":"IF($D96>8,\"9 DIU211 modules\",\" \")","v":"9 DIU211 modules"},{"$f":"IF($D96>9,\"10 DIU211 modules\",\" \")","v":" "}," "," "," "," "," ",0,"1","2","3","4",{"$f":"IF($D96>4,\"5\",Z96)","v":"5"},{"$f":"IF($D96>5,\"6\",AA96)","v":"6"},{"$f":"IF($D96>6,\"7\",AB96)","v":"7"},{"$f":"IF($D96>7,\"8\",AC96)","v":"8"},{"$f":"IF($D96>8,\"9\",AD96)","v":"9"},{"$f":"IF($D96>9,\"A\",AE96)","v":"9"},{"$f":"IF($D96>9,\"A\",AF96)","v":"9"},{"$f":"IF($D96>9,\"A\",AG96)","v":"9"},{"$f":"IF($D96>9,\"A\",AH96)","v":"9"},{"$f":"IF($D96>9,\"A\",AI96)","v":"9"},{"$f":"AJ96","v":"9"}]
[8,{"$f":"VLOOKUP($E$90,$E$91:$AK$97,9,FALSE)","v":"7 DIU211 modules"},{"$f":"VLOOKUP($E$90,$E$91:$AK$97,25,FALSE)","v":"7"},8,"U","No Modules","1 DIU211 module","2 DIU211 modules","3 DIU211 modules","4 DIU211 modules",{"$f":"IF($D97>4,\"5 DIU211 modules\",\" \")","v":"5 DIU211 modules"},{"$f":"IF($D97>5,\"6 DIU211 modules\",\" \")","v":"6 DIU211 modules"},{"$f":"IF($D97>6,\"7 DIU211 modules\",\" \")","v":"7 DIU211 modules"},{"$f":"IF($D97>7,\"8 DIU211 modules\",\" \")","v":"8 DIU211 modules"},{"$f":"IF($D97>8,\"9 DIU211 modules\",\" \")","v":" "}," "," "," "," "," "," ",0,"1","2","3","4",{"$f":"IF($D97>4,\"5\",Z97)","v":"5"},{"$f":"IF($D97>5,\"6\",AA97)","v":"6"},{"$f":"IF($D97>6,\"7\",AB97)","v":"7"},{"$f":"IF($D97>7,\"8\",AC97)","v":"8"},{"$f":"IF($D97>8,\"9\",AD97)","v":"8"},{"$f":"AE97","v":"8"},"8","8","8","8","8"]
[9,{"$f":"VLOOKUP($E$90,$E$91:$AK$97,10,FALSE)","v":"8 DIU211 modules"},{"$f":"VLOOKUP($E$90,$E$91:$AK$97,26,FALSE)","v":"8"}]
[10,{"$f":"VLOOKUP($E$90,$E$91:$AK$97,11,FALSE)","v":"9 DIU211 modules"},{"$f":"VLOOKUP($E$90,$E$91:$AK$97,27,FALSE)","v":"9"}]
[11,{"$f":"VLOOKUP($E$90,$E$91:$AK$97,12,FALSE)","v":"10 DIU211 modules"},{"$f":"VLOOKUP($E$90,$E$91:$AK$97,28,FALSE)","v":"A"},"Cards #",{"$f":"VLOOKUP(Tendering!$B$23,Database!$A$90:$C$105,1,FALSE)-1","v":1}]
[12,{"$f":"VLOOKUP($E$90,$E$91:$AK$97,13,FALSE)","v":"11 DIU211 modules"},{"$f":"VLOOKUP($E$90,$E$91:$AK$97,29,FALSE)","v":"B"}]
[13,{"$f":"VLOOKUP($E$90,$E$91:$AK$97,14,FALSE)","v":"12 DIU211 modules"},{"$f":"VLOOKUP($E$90,$E$91:$AK$97,30,FALSE)","v":"C"}]
[14,{"$f":"VLOOKUP($E$90,$E$91:$AK$97,15,FALSE)","v":"13 DIU211 modules"},{"$f":"VLOOKUP($E$90,$E$91:$AK$97,31,FALSE)","v":"D"}]
[15,{"$f":"VLOOKUP($E$90,$E$91:$AK$97,16,FALSE)","v":" "},{"$f":"VLOOKUP($E$90,$E$91:$AK$97,32,FALSE)","v":"D"}]
[16,{"$f":"VLOOKUP($E$90,$E$91:$AK$97,17,FALSE)","v":" "},{"$f":"VLOOKUP($E$90,$E$91:$AK$97,33,FALSE)","v":"D"}]
[]
[1,{"$f":"VLOOKUP($E$107,$E$108:$AK$114,2,FALSE)","v":"No Modules"},{"$f":"VLOOKUP($E$107,$E$108:$AK$114,18,FALSE)","v":0},null,{"$f":"Configurator!$E$3","v":"M"}]
[2,{"$f":"VLOOKUP($E$107,$E$108:$AK$114,3,FALSE)","v":"1 DOU201 module"},{"$f":"VLOOKUP($E$107,$E$108:$AK$114,19,FALSE)","v":"1"},"Max"]
[3,{"$f":"VLOOKUP($E$107,$E$108:$AK$114,4,FALSE)","v":"2 DOU201 modules"},{"$f":"VLOOKUP($E$107,$E$108:$AK$114,20,FALSE)","v":"2"},{"$f":"$D92-$E$100","v":4},"C","No Modules",{"$f":"IF($D109>0,\"1 DOU201 module\",\" \")","v":"1 DOU201 module"},{"$f":"IF($D109>1,\"2 DOU201 modules\",\" \")","v":"2 DOU201 modules"},{"$f":"IF($D109>2,\"3 DOU201 modules\",\" \")","v":"3 DOU201 modules"},{"$f":"IF($D109>3,\"4 DOU201 modules\",\" \")","v":"4 DOU201 modules"},{"$f":"IF($D109>4,\"5 DOU201 modules\",\" \")","v":" "},{"$f":"IF($D109>5,\"6 DOU201 modules\",\" \")","v":" "}," "," "," "," "," "," "," "," "," ",0,{"$f":"IF($D109>0,\"1\",V109)","v":"1"},{"$f":"IF($D109>1,\"2\",W109)","v":"2"},{"$f":"IF($D109>2,\"3\",X109)","v":"3"},{"$f":"IF($D109>3,\"4\",Y109)","v":"4"},{"$f":"IF($D109>4,\"5\",Z109)","v":"4"},{"$f":"IF($D109>5,\"6\",AA109)","v":"4"},{"$f":"AB109","v":"4"},{"$f":"AC109","v":"4"},"4","4","4","4","4","4","4"]
[4,{"$f":"VLOOKUP($E$107,$E$108:$AK$114,5,FALSE)","v":"3 DOU201 modules"},{"$f":"VLOOKUP($E$107,$E$108:$AK$114,21,FALSE)","v":"3"},{"$f":"$D93-$E$100","v":2},"S","No Modules","1 DOU201 module","2 DOU201 modules"," "," "," "," "," "," "," "," "," "," "," "," "," ",0,"1","2","2","2",{"$f":"Z110","v":"2"},"2","2","2","2","2","2","2","2","2","2"]
[5,{"$f":"VLOOKUP($E$107,$E$108:$AK$114,6,FALSE)","v":"4 DOU201 modules"},{"$f":"VLOOKUP($E$107,$E$108:$AK$114,22,FALSE)","v":"4"},13,"L","No Modules","1 DOU201 module","2 DOU201 modules","3 DOU201 modules","4 DOU201 modules",{"$f":"IF($D111>4,\"5 DOU201 modules\",\" \")","v":"5 DOU201 modules"},{"$f":"IF($D111>5,\"6 DOU201 modules\",\" \")","v":"6 DOU201 modules"},{"$f":"IF($D111>6,\"7 DOU201 modules\",\" \")","v":"7 DOU201 modules"},{"$f":"IF($D111>7,\"8 DOU201 modules\",\" \")","v":"8 DOU201 modules"},{"$f":"IF($D111>8,\"9 DOU201 modules\",\" \")","v":"9 DOU201 modules"},{"$f":"IF($D111>9,\"10 DOU201 modules\",\" \")","v":"10 DOU201 modules"},{"$f":"IF($D111>10,\"11 DOU201 modules\",\" \")","v":"11 DOU201 modules"},{"$f":"IF($D111>11,\"12 DOU201 modules\",\" \")","v":"12 DOU201 modules"},{"$f":"IF($D111>12,\"13 DOU201 modules\",\" \")","v":"13 DOU201 modules"},{"$f":"IF($D111>13,\"14 DOU201 modules\",\" \")","v":" "},{"$f":"IF($D111>14,\"15 DOU201 modules\",\" \")","v":" "},0,"1","2","3","4",{"$f":"IF($D111>4,\"5\",Z111)","v":"5"},{"$f":"IF($D111>5,\"6\",AA111)","v":"6"},{"$f":"IF($D111>6,\"7\",AB111)","v":"7"},{"$f":"IF($D111>7,\"8\",AC111)","v":"8"},{"$f":"IF($D111>8,\"9\",AD111)","v":"9"},{"$f":"IF($D111>9,\"A\",AE111)","v":"A"},{"$f":"IF($D111>10,\"B\",AF111)","v":"B"},{"$f":"IF($D111>11,\"C\",AG111)","v":"C"},{"$f":"IF($D111>12,\"D\",AH111)","v":"D"},{"$f":"IF($D111>13,\"E\",AI111)","v":"D"},{"$f":"IF($D111>14,\"F\",AJ111)","v":"D"}]
[6,{"$f":"VLOOKUP($E$107,$E$108:$AK$114,7,FALSE)","v":"5 DOU201 modules"},{"$f":"VLOOKUP($E$107,$E$108:$AK$114,23,FALSE)","v":"5"},12,"M","No Modules","1 DOU201 module","2 DOU201 modules","3 DOU201 modules","4 DOU201 modules",{"$f":"IF($D112>4,\"5 DOU201 modules\",\" \")","v":"5 DOU201 modules"},{"$f":"IF($D112>5,\"6 DOU201 modules\",\" \")","v":"6 DOU201 modules"},{"$f":"IF($D112>6,\"7 DOU201 modules\",\" \")","v":"7 DOU201 modules"},{"$f":"IF($D112>7,\"8 DOU201 modules\",\" \")","v":"8 DOU201 modules"},{"$f":"IF($D112>8,\"9 DOU201 modules\",\" \")","v":"9 DOU201 modules"},{"$f":"IF($D112>9,\"10 DOU201 modules\",\" \")","v":"10 DOU201 modules"},{"$f":"IF($D112>10,\"11 DOU201 modules\",\" \")","v":"11 DOU201 modules"},{"$f":"IF($D112>11,\"12 DOU201 modules\",\" \")","v":"12 DOU201 modules"},{"$f":"IF($D112>12,\"13 DOU201 modules\",\" \")","v":" "},{"$f":"IF($D112>13,\"14 DOU201 modules\",\" \")","v":" "}," ",0,"1","2","3","4",{"$f":"IF($D112>4,\"5\",Z112)","v":"5"},{"$f":"IF($D112>5,\"6\",AA112)","v":"6"},{"$f":"IF($D112>6,\"7\",AB112)","v":"7"},{"$f":"IF($D112>7,\"8\",AC112)","v":"8"},{"$f":"IF($D112>8,\"9\",AD112)","v":"9"},{"$f":"IF($D112>9,\"A\",AE112)","v":"A"},{"$f":"IF($D112>10,\"B\",AF112)","v":"B"},{"$f":"IF($D112>11,\"C\",AG112)","v":"C"},{"$f":"IF($D112>12,\"D\",AH112)","v":"C"},{"$f":"IF($D112>13,\"E\",AI112)","v":"C"},{"$f":"AJ112","v":"C"}]
[7,{"$f":"VLOOKUP($E$107,$E$108:$AK$114,8,FALSE)","v":"6 DOU201 modules"},{"$f":"VLOOKUP($E$107,$E$108:$AK$114,24,FALSE)","v":"6"},8,"T","No Modules","1 DOU201 module","2 DOU201 modules","3 DOU201 modules","4 DOU201 modules",{"$f":"IF($D113>4,\"5 DOU201 modules\",\" \")","v":"5 DOU201 modules"},{"$f":"IF($D113>5,\"6 DOU201 modules\",\" \")","v":"6 DOU201 modules"},{"$f":"IF($D113>6,\"7 DOU201 modules\",\" \")","v":"7 DOU201 modules"},{"$f":"IF($D113>7,\"8 DOU201 modules\",\" \")","v":"8 DOU201 modules"},{"$f":"IF($D113>8,\"9 DOU201 modules\",\" \")","v":" "},{"$f":"IF($D113>9,\"10 DOU201 modules\",\" \")","v":" "}," "," "," "," "," ",0,"1","2","3","4",{"$f":"IF($D113>4,\"5\",Z113)","v":"5"},{"$f":"IF($D113>5,\"6\",AA113)","v":"6"},{"$f":"IF($D113>6,\"7\",AB113)","v":"7"},{"$f":"IF($D113>7,\"8\",AC113)","v":"8"},{"$f":"IF($D113>8,\"9\",AD113)","v":"8"},{"$f":"IF($D113>9,\"A\",AE113)","v":"8"},{"$f":"IF($D113>9,\"A\",AF113)","v":"8"},{"$f":"IF($D113>9,\"A\",AG113)","v":"8"},{"$f":"IF($D113>9,\"A\",AH113)","v":"8"},{"$f":"IF($D113>9,\"A\",AI113)","v":"8"},{"$f":"AJ113","v":"8"}]
[8,{"$f":"VLOOKUP($E$107,$E$108:$AK$114,9,FALSE)","v":"7 DOU201 modules"},{"$f":"VLOOKUP($E$107,$E$108:$AK$114,25,FALSE)","v":"7"},7,"U","No Modules","1 DOU201 module","2 DOU201 modules","3 DOU201 modules","4 DOU201 modules",{"$f":"IF($D114>4,\"5 DOU201 modules\",\" \")","v":"5 DOU201 modules"},{"$f":"IF($D114>5,\"6 DOU201 modules\",\" \")","v":"6 DOU201 modules"},{"$f":"IF($D114>6,\"7 DOU201 modules\",\" \")","v":"7 DOU201 modules"},{"$f":"IF($D114>7,\"8 DOU201 modules\",\" \")","v":" "},{"$f":"IF($D114>8,\"9 DOU201 modules\",\" \")","v":" "}," "," "," "," "," "," ",0,"1","2","3","4",{"$f":"IF($D114>4,\"5\",Z114)","v":"5"},{"$f":"IF($D114>5,\"6\",AA114)","v":"6"},{"$f":"IF($D114>6,\"7\",AB114)","v":"7"},{"$f":"IF($D114>7,\"8\",AC114)","v":"7"},{"$f":"IF($D114>8,\"9\",AD114)","v":"7"},{"$f":"AE114","v":"7"},"7","7","7","7","7"]
[9,{"$f":"VLOOKUP($E$107,$E$108:$AK$114,10,FALSE)","v":"8 DOU201 modules"},{"$f":"VLOOKUP($E$107,$E$108:$AK$114,26,FALSE)","v":"8"}]
[10,{"$f":"VLOOKUP($E$107,$E$108:$AK$114,11,FALSE)","v":"9 DOU201 modules"},{"$f":"VLOOKUP($E$107,$E$108:$AK$114,27,FALSE)","v":"9"}]
[11,{"$f":"VLOOKUP($E$107,$E$108:$AK$114,12,FALSE)","v":"10 DOU201 modules"},{"$f":"VLOOKUP($E$107,$E$108:$AK$114,28,FALSE)","v":"A"},"Cards #",{"$f":"VLOOKUP(Tendering!$B$24,Database!$A$107:$C$122,1,FALSE)-1","v":1}]
[12,{"$f":"VLOOKUP($E$107,$E$108:$AK$114,13,FALSE)","v":"11 DOU201 modules"},{"$f":"VLOOKUP($E$107,$E$108:$AK$114,29,FALSE)","v":"B"}]
[13,{"$f":"VLOOKUP($E$107,$E$108:$AK$114,14,FALSE)","v":"12 DOU201 modules"},{"$f":"VLOOKUP($E$107,$E$108:$AK$114,30,FALSE)","v":"C"}]
[14,{"$f":"VLOOKUP($E$107,$E$108:$AK$114,15,FALSE)","v":" "},{"$f":"VLOOKUP($E$107,$E$108:$AK$114,31,FALSE)","v":"C"}]
[15,{"$f":"VLOOKUP($E$107,$E$108:$AK$114,16,FALSE)","v":" "},{"$f":"VLOOKUP($E$107,$E$108:$AK$114,32,FALSE)","v":"C"}]
[16,{"$f":"VLOOKUP($E$107,$E$108:$AK$114,17,FALSE)","v":" "},{"$f":"VLOOKUP($E$107,$E$108:$AK$114,33,FALSE)","v":"C"}]
[]
[1,{"$f":"VLOOKUP($E$124,$E$125:$AK$131,2,FALSE)","v":"No Modules"},{"$f":"VLOOKUP($E$124,$E$125:$AK$131,18,FALSE)","v":0},null,{"$f":"Configurator!$E$3","v":"M"}]
[2,{"$f":"VLOOKUP($E$124,$E$125:$AK$131,3,FALSE)","v":"1 CCU200 Module"},{"$f":"VLOOKUP($E$124,$E$125:$AK$131,19,FALSE)","v":"1"},"Max"]
[3,{"$f":"VLOOKUP($E$124,$E$125:$AK$131,4,FALSE)","v":"2 CCU200 Modules"},{"$f":"VLOOKUP($E$124,$E$125:$AK$131,20,FALSE)","v":"2"},{"$f":"$D109-$E$117","v":3},"C","No Modules",{"$f":"IF($D126>0,CONCATENATE(\"1 \",$E$135,\" Module\"),\" \")","v":"1 CCU200 Module"},{"$f":"IF($D126>1,CONCATENATE(\"2 \",$E$135,\" Modules\"),\" \")","v":"2 CCU200 Modules"},{"$f":"IF($D126>2,CONCATENATE(\"3 \",$E$135,\" Modules\"),\" \")","v":"3 CCU200 Modules"},{"$f":"IF($D126>3,CONCATENATE(\"4 \",$E$135,\" Modules\"),\" \")","v":" "},{"$f":"IF($D126>4,CONCATENATE(\"5 \",$E$135,\" Modules\"),\" \")","v":" "},{"$f":"IF($D126>5,CONCATENATE(\"6 \",$E$135,\" Modules\"),\" \")","v":" "}," "," "," "," "," "," "," "," "," ",0,{"$f":"IF($D126>0,\"1\",V126)","v":"1"},{"$f":"IF($D126>1,\"2\",W126)","v":"2"},{"$f":"IF($D126>2,\"3\",X126)","v":"3"},{"$f":"IF($D126>3,\"4\",Y126)","v":"3"},{"$f":"IF($D126>4,\"5\",Z126)","v":"3"},{"$f":"IF($D126>5,\"6\",AA126)","v":"3"},{"$f":"AB126","v":"3"},{"$f":"AC126","v":"3"},"3","3","3","3","3","3","3"]
[4,{"$f":"VLOOKUP($E$124,$E$125:$AK$131,5,FALSE)","v":"3 CCU200 Modules"},{"$f":"VLOOKUP($E$124,$E$125:$AK$131,21,FALSE)","v":"3"},{"$f":"$D110-$E$117","v":1},"S","No Modules","1 CCU200 Module"," "," "," "," "," "," "," "," "," "," "," "," "," "," ",0,"1","1","1","1",{"$f":"Z127","v":"1"},"1","1","1","1","1","1","1","1","1","1"]
[5,{"$f":"VLOOKUP($E$124,$E$125:$AK$131,6,FALSE)","v":"4 CCU200 Modules"},{"$f":"VLOOKUP($E$124,$E$125:$AK$131,22,FALSE)","v":"4"},12,"L","No Modules","1 CCU200 Module","2 CCU200 Modules","3 CCU200 Modules","4 CCU200 Modules",{"$f":"IF($D128>4,CONCATENATE(\"5 \",$E$135,\" Modules\"),\" \")","v":"5 CCU200 Modules"},{"$f":"IF($D128>5,CONCATENATE(\"6 \",$E$135,\" Modules\"),\" \")","v":"6 CCU200 Modules"},{"$f":"IF($D128>6,CONCATENATE(\"7 \",$E$135,\" Modules\"),\" \")","v":"7 CCU200 Modules"},{"$f":"IF($D128>7,CONCATENATE(\"8 \",$E$135,\" Modules\"),\" \")","v":"8 CCU200 Modules"},{"$f":"IF($D128>8,CONCATENATE(\"9 \",$E$135,\" Modules\"),\" \")","v":"9 CCU200 Modules"},{"$f":"IF($D128>9,CONCATENATE(\"10 \",$E$135,\" Modules\"),\" \")","v":"10 CCU200 Modules"},{"$f":"IF($D128>10,CONCATENATE(\"11 \",$E$135,\" Modules\"),\" \")","v":"11 CCU200 Modules"},{"$f":"IF($D128>11,CONCATENATE(\"12 \",$E$135,\" Modules\"),\" \")","v":"12 CCU200 Modules"},{"$f":"IF($D128>12,CONCATENATE(\"13 \",$E$135,\" Modules\"),\" \")","v":" "},{"$f":"IF($D128>13,CONCATENATE(\"14 \",$E$135,\" Modules\"),\" \")","v":" "},{"$f":"IF($D128>14,CONCATENATE(\"15 \",$E$135,\" Modules\"),\" \")","v":" "},0,"1","2","3","4",{"$f":"IF($D128>4,\"5\",Z128)","v":"5"},{"$f":"IF($D128>5,\"6\",AA128)","v":"6"},{"$f":"IF($D128>6,\"7\",AB128)","v":"7"},{"$f":"IF($D128>7,\"8\",AC128)","v":"8"},{"$f":"IF($D128>8,\"9\",AD128)","v":"9"},{"$f":"IF($D128>9,\"A\",AE128)","v":"A"},{"$f":"IF($D128>10,\"B\",AF128)","v":"B"},{"$f":"IF($D128>11,\"C\",AG128)","v":"C"},{"$f":"IF($D128>12,\"D\",AH128)","v":"C"},{"$f":"IF($D128>13,\"E\",AI128)","v":"C"},{"$f":"IF($D128>14,\"F\",AJ128)","v":"C"}]
[6,{"$f":"VLOOKUP($E$124,$E$125:$AK$131,7,FALSE)","v":"5 CCU200 Modules"},{"$f":"VLOOKUP($E$124,$E$125:$AK$131,23,FALSE)","v":"5"},11,"M","No Modules","1 CCU200 Module","2 CCU200 Modules","3 CCU200 Modules","4 CCU200 Modules",{"$f":"IF($D129>4,CONCATENATE(\"5 \",$E$135,\" Modules\"),\" \")","v":"5 CCU200 Modules"},{"$f":"IF($D129>5,CONCATENATE(\"6 \",$E$135,\" Modules\"),\" \")","v":"6 CCU200 Modules"},{"$f":"IF($D129>6,CONCATENATE(\"7 \",$E$135,\" Modules\"),\" \")","v":"7 CCU200 Modules"},{"$f":"IF($D129>7,CONCATENATE(\"8 \",$E$135,\" Modules\"),\" \")","v":"8 CCU200 Modules"},{"$f":"IF($D129>8,CONCATENATE(\"9 \",$E$135,\" Modules\"),\" \")","v":"9 CCU200 Modules"},{"$f":"IF($D129>9,CONCATENATE(\"10 \",$E$135,\" Modules\"),\" \")","v":"10 CCU200 Modules"},{"$f":"IF($D129>10,CONCATENATE(\"11 \",$E$135,\" Modules\"),\" \")","v":"11 CCU200 Modules"},{"$f":"IF($D129>11,CONCATENATE(\"12 \",$E$135,\" Modules\"),\" \")","v":" "},{"$f":"IF($D129>12,CONCATENATE(\"13 \",$E$135,\" Modules\"),\" \")","v":" "},{"$f":"IF($D129>13,CONCATENATE(\"14 \",$E$135,\" Modules\"),\" \")","v":" "}," ",0,"1","2","3","4",{"$f":"IF($D129>4,\"5\",Z129)","v":"5"},{"$f":"IF($D129>5,\"6\",AA129)","v":"6"},{"$f":"IF($D129>6,\"7\",AB129)","v":"7"},{"$f":"IF($D129>7,\"8\",AC129)","v":"8"},{"$f":"IF($D129>8,\"9\",AD129)","v":"9"},{"$f":"IF($D129>9,\"A\",AE129)","v":"A"},{"$f":"IF($D129>10,\"B\",AF129)","v":"B"},{"$f":"IF($D129>11,\"C\",AG129)","v":"B"},{"$f":"IF($D129>12,\"D\",AH129)","v":"B"},{"$f":"IF($D129>13,\"E\",AI129)","v":"B"},{"$f":"AJ129","v":"B"}]
[7,{"$f":"VLOOKUP($E$124,$E$125:$AK$131,8,FALSE)","v":"6 CCU200 Modules"},{"$f":"VLOOKUP($E$124,$E$125:$AK$131,24,FALSE)","v":"6"},7,"T","No Modules","1 CCU200 Module","2 CCU200 Modules","3 CCU200 Modules","4 CCU200 Modules",{"$f":"IF($D130>4,CONCATENATE(\"5 \",$E$135,\" Modules\"),\" \")","v":"5 CCU200 Modules"},{"$f":"IF($D130>5,CONCATENATE(\"6 \",$E$135,\" Modules\"),\" \")","v":"6 CCU200 Modules"},{"$f":"IF($D130>6,CONCATENATE(\"7 \",$E$135,\" Modules\"),\" \")","v":"7 CCU200 Modules"},{"$f":"IF($D130>7,CONCATENATE(\"8 \",$E$135,\" Modules\"),\" \")","v":" "},{"$f":"IF($D130>8,CONCATENATE(\"9 \",$E$135,\" Modules\"),\" \")","v":" "},{"$f":"IF($D130>9,CONCATENATE(\"10 \",$E$135,\" Modules\"),\" \")","v":" "}," "," "," "," "," ",0,"1","2","3","4",{"$f":"IF($D130>4,\"5\",Z130)","v":"5"},{"$f":"IF($D130>5,\"6\",AA130)","v":"6"},{"$f":"IF($D130>6,\"7\",AB130)","v":"7"},{"$f":"IF($D130>7,\"8\",AC130)","v":"7"},{"$f":"IF($D130>8,\"9\",AD130)","v":"7"},{"$f":"IF($D130>9,\"A\",AE130)","v":"7"},{"$f":"IF($D130>9,\"A\",AF130)","v":"7"},{"$f":"IF($D130>9,\"A\",AG130)","v":"7"},{"$f":"IF($D130>9,\"A\",AH130)","v":"7"},{"$f":"IF($D130>9,\"A\",AI130)","v":"7"},{"$f":"AJ130","v":"7"}]
[8,{"$f":"VLOOKUP($E$124,$E$125:$AK$131,9,FALSE)","v":"7 CCU200 Modules"},{"$f":"VLOOKUP($E$124,$E$125:$AK$131,25,FALSE)","v":"7"},6,"U","No Modules","1 CCU200 Module","2 CCU200 Modules","3 CCU200 Modules","4 CCU200 Modules",{"$f":"IF($D131>4,CONCATENATE(\"5 \",$E$135,\" Modules\"),\" \")","v":"5 CCU200 Modules"},{"$f":"IF($D131>5,CONCATENATE(\"6 \",$E$135,\" Modules\"),\" \")","v":"6 CCU200 Modules"},{"$f":"IF($D131>6,CONCATENATE(\"7 \",$E$135,\" Modules\"),\" \")","v":" "},{"$f":"IF($D131>7,CONCATENATE(\"8 \",$E$135,\" Modules\"),\" \")","v":" "},{"$f":"IF($D131>8,CONCATENATE(\"9 \",$E$135,\" Modules\"),\" \")","v":" "}," "," "," "," "," "," ",0,"1","2","3","4",{"$f":"IF($D131>4,\"5\",Z131)","v":"5"},{"$f":"IF($D131>5,\"6\",AA131)","v":"6"},{"$f":"IF($D131>6,\"7\",AB131)","v":"6"},{"$f":"IF($D131>7,\"8\",AC131)","v":"6"},{"$f":"IF($D131>8,\"9\",AD131)","v":"6"},{"$f":"AE131","v":"6"},"6","6","6","6","6"]
[9,{"$f":"VLOOKUP($E$124,$E$125:$AK$131,10,FALSE)","v":"8 CCU200 Modules"},{"$f":"VLOOKUP($E$124,$E$125:$AK$131,26,FALSE)","v":"8"}]
[10,{"$f":"VLOOKUP($E$124,$E$125:$AK$131,11,FALSE)","v":"9 CCU200 Modules"},{"$f":"VLOOKUP($E$124,$E$125:$AK$131,27,FALSE)","v":"9"}]
[11,{"$f":"VLOOKUP($E$124,$E$125:$AK$131,12,FALSE)","v":"10 CCU200 Modules"},{"$f":"VLOOKUP($E$124,$E$125:$AK$131,28,FALSE)","v":"A"},"Cards #",{"$f":"VLOOKUP(Tendering!$B$25,Database!$A$124:$C$139,1,FALSE)-1","v":0}]
[12,{"$f":"VLOOKUP($E$124,$E$125:$AK$131,13,FALSE)","v":"11 CCU200 Modules"},{"$f":"VLOOKUP($E$124,$E$125:$AK$131,29,FALSE)","v":"B"},"CCUxxx",{"$f":"IF(VLOOKUP(Tendering!$B$21,Database!$A$64:$C$71,1,FALSE)>5,\"CCU211\",\"CCU200\")","v":"CCU200"}]
[13,{"$f":"VLOOKUP($E$124,$E$125:$AK$131,14,FALSE)","v":" "},{"$f":"VLOOKUP($E$124,$E$125:$AK$131,30,FALSE)","v":"B"}]
[14,{"$f":"VLOOKUP($E$124,$E$125:$AK$131,15,FALSE)","v":" "},{"$f":"VLOOKUP($E$124,$E$125:$AK$131,31,FALSE)","v":"B"}]
[15,{"$f":"VLOOKUP($E$124,$E$125:$AK$131,16,FALSE)","v":" "},{"$f":"VLOOKUP($E$124,$E$125:$AK$131,32,FALSE)","v":"B"}]
[16,{"$f":"VLOOKUP($E$124,$E$125:$AK$131,17,FALSE)","v":" "},{"$f":"VLOOKUP($E$124,$E$125:$AK$131,33,FALSE)","v":"B"}]
[]
[1,{"$f":"VLOOKUP($E$141,$E$142:$AK$148,2,FALSE)","v":"No Modules"},{"$f":"VLOOKUP($E$141,$E$142:$AK$148,18,FALSE)","v":0},null,{"$f":"Configurator!$E$3","v":"M"}]
[2,{"$f":"VLOOKUP($E$141,$E$142:$AK$148,3,FALSE)","v":"1 AIU201 module"},{"$f":"VLOOKUP($E$141,$E$142:$AK$148,19,FALSE)","v":"1"},"Max"]
[3,{"$f":"VLOOKUP($E$141,$E$142:$AK$148,4,FALSE)","v":"2 AIU201 modules"},{"$f":"VLOOKUP($E$141,$E$142:$AK$148,20,FALSE)","v":"2"},{"$f":"$D126-$E$134","v":3},"C","No Modules",{"$f":"IF($D143>0,\"1 AIU201 module\",\" \")","v":"1 AIU201 module"},{"$f":"IF($D143>1,\"2 AIU201 modules\",\" \")","v":"2 AIU201 modules"},{"$f":"IF($D143>2,\"3 AIU201 modules\",\" \")","v":"3 AIU201 modules"},{"$f":"IF($D143>3,\"4 AIU201 modules\",\" \")","v":" "}," "," "," "," "," "," "," "," "," "," "," ",0,{"$f":"IF($D143>0,\"1\",V143)","v":"1"},{"$f":"IF($D143>1,\"2\",W143)","v":"2"},{"$f":"IF($D143>2,\"3\",X143)","v":"3"},{"$f":"IF($D143>3,\"4\",Y143)","v":"3"},{"$f":"Z143","v":"3"},{"$f":"AA143","v":"3"}]
[4,{"$f":"VLOOKUP($E$141,$E$142:$AK$148,5,FALSE)","v":"3 AIU201 modules"},{"$f":"VLOOKUP($E$141,$E$142:$AK$148,21,FALSE)","v":"3"},{"$f":"$D127-$E$134","v":1},"S","No Modules","1 AIU201 module"," "," "," "," "," "," "," "," "," "," "," "," "," "," ",0,"1","1","1","1",{"$f":"Z144","v":"1"},{"$f":"AA144","v":"1"}]
[5,{"$f":"VLOOKUP($E$141,$E$142:$AK$148,6,FALSE)","v":"4 AIU201 modules"},{"$f":"VLOOKUP($E$141,$E$142:$AK$148,22,FALSE)","v":"4"},12,"L","No Modules","1 AIU201 module","2 AIU201 modules","3 AIU201 modules","4 AIU201 modules",{"$f":"IF($D145>4,\"5 AIU201 modules\",\" \")","v":"5 AIU201 modules"},{"$f":"IF($D145>5,\"6 AIU201 modules\",\" \")","v":"6 AIU201 modules"}," "," "," "," "," "," "," "," "," ",0,"1","2","3","4",{"$f":"IF($D145>4,\"5\",Z145)","v":"5"},{"$f":"IF($D145>5,\"6\",AA145)","v":"6"}]
[6,{"$f":"VLOOKUP($E$141,$E$142:$AK$148,7,FALSE)","v":"5 AIU201 modules"},{"$f":"VLOOKUP($E$141,$E$142:$AK$148,23,FALSE)","v":"5"},11,"M","No Modules","1 AIU201 module","2 AIU201 modules","3 AIU201 modules","4 AIU201 modules",{"$f":"IF($D146>4,\"5 AIU201 modules\",\" \")","v":"5 AIU201 modules"},{"$f":"IF($D146>5,\"6 AIU201 modules\",\" \")","v":"6 AIU201 modules"}," "," "," "," "," "," "," "," "," ",0,"1","2","3","4",{"$f":"IF($D146>4,\"5\",Z146)","v":"5"},{"$f":"IF($D146>5,\"6\",AA146)","v":"6"}]
[7,{"$f":"VLOOKUP($E$141,$E$142:$AK$148,8,FALSE)","v":"6 AIU201 modules"},{"$f":"VLOOKUP($E$141,$E$142:$AK$148,24,FALSE)","v":"6"},7,"T","No Modules","1 AIU201 module","2 AIU201 modules","3 AIU201 modules","4 AIU201 modules",{"$f":"IF($D147>4,\"5 AIU201 modules\",\" \")","v":"5 AIU201 modules"},{"$f":"IF($D147>5,\"6 AIU201 modules\",\" \")","v":"6 AIU201 modules"}," "," "," "," "," "," "," "," "," ",0,"1","2","3","4",{"$f":"IF($D147>4,\"5\",Z147)","v":"5"},{"$f":"IF($D147>5,\"6\",AA147)","v":"6"}]
[null,null,null,6,"U","No Modules","1 AIU201 module","2 AIU201 modules","3 AIU201 modules","4 AIU201 modules",{"$f":"IF($D148>4,\"5 AIU201 modules\",\" \")","v":"5 AIU201 modules"},{"$f":"IF($D148>5,\"6 AIU201 modules\",\" \")","v":"6 AIU201 modules"}," "," "," "," "," "," "," "," "," ",0,"1","2","3","4",{"$f":"IF($D148>4,\"5\",Z148)","v":"5"},{"$f":"IF($D148>5,\"6\",AA148)","v":"6"}]
[]
[null,null,null,"Cards #",{"$f":"VLOOKUP(Tendering!$B$26,Database!$A$141:$C$147,1,FALSE)-1","v":2}]
[]
[1,{"$f":"VLOOKUP($E$152,$E$153:$AK$159,2,FALSE)","v":"No Modules"},{"$f":"VLOOKUP($E$152,$E$153:$AK$159,18,FALSE)","v":0},null,{"$f":"Configurator!$E$3","v":"M"}]
[2,{"$f":"VLOOKUP($E$152,$E$153:$AK$159,3,FALSE)","v":"1 AIU211 module"},{"$f":"VLOOKUP($E$152,$E$153:$AK$159,19,FALSE)","v":"A"},"Max"]
[3,{"$f":"VLOOKUP($E$152,$E$153:$AK$159,4,FALSE)","v":"2 AIU211 modules"},{"$f":"VLOOKUP($E$152,$E$153:$AK$159,20,FALSE)","v":"B"},{"$f":"$D143-$E$150","v":1},"C","No Modules",{"$f":"IF($E$150>5,\" \",IF($D154>0,\"1 AIU211 module\",\" \"))","v":"1 AIU211 module"},{"$f":"IF($E$150>4,\" \",IF($D154>1,\"2 AIU211 modules\",\" \"))","v":" "},{"$f":"IF($E$150>3,\" \",IF($D154>2,\"3 AIU211 modules\",\" \"))","v":" "},{"$f":"IF($E$150>2,\" \",IF($D154>3,\"4 AIU211 modules\",\" \"))","v":" "}," "," "," "," "," "," "," "," "," "," "," ",0,{"$f":"IF($E$150>5,V154,IF($D154>0,\"A\",V154))","v":"A"},{"$f":"IF($E$150>4,W154,IF($D154>1,\"B\",W154))","v":"A"},{"$f":"IF($E$150>3,X154,IF($D154>2,\"C\",X154))","v":"A"},{"$f":"IF($E$150>2,Y154,IF($D154>3,\"D\",Y154))","v":"A"},{"$f":"Z154","v":"A"},{"$f":"AA154","v":"A"}]
[4,{"$f":"VLOOKUP($E$152,$E$153:$AK$159,5,FALSE)","v":"3 AIU211 modules"},{"$f":"VLOOKUP($E$152,$E$153:$AK$159,21,FALSE)","v":"C"},{"$f":"$D144-$E$150","v":-1},"S","No Modules"," "," "," "," "," "," "," "," "," "," "," "," "," "," "," ",0,0,0,0,0,{"$f":"Z155","v":0},{"$f":"AA155","v":0}]
[5,{"$f":"VLOOKUP($E$152,$E$153:$AK$159,6,FALSE)","v":"4 AIU211 modules"},{"$f":"VLOOKUP($E$152,$E$153:$AK$159,22,FALSE)","v":"D"},10,"L","No Modules","1 AIU211 module","2 AIU211 modules","3 AIU211 modules","4 AIU211 modules",{"$f":"IF($E$150>1,\" \",IF($D156>4,\"5 AIU211 modules\",\" \"))","v":" "},{"$f":"IF($E$150>0,\" \",IF($D156>5,\"6 AIU211 modules\",\" \"))","v":" "}," "," "," "," "," "," "," "," "," ",0,"A","B","C","D",{"$f":"IF($E$150>1,Z156,IF($D156>4,\"E\",Z156))","v":"D"},{"$f":"IF($E$150>0,AA156,IF($D156>5,\"F\",AA156))","v":"D"}]
[6,{"$f":"VLOOKUP($E$152,$E$153:$AK$159,7,FALSE)","v":" "},{"$f":"VLOOKUP($E$152,$E$153:$AK$159,23,FALSE)","v":"D"},9,"M","No Modules","1 AIU211 module","2 AIU211 modules","3 AIU211 modules","4 AIU211 modules",{"$f":"IF($E$150>1,\" \",IF($D157>4,\"5 AIU211 modules\",\" \"))","v":" "},{"$f":"IF($E$150>0,\" \",IF($D157>5,\"6 AIU211 modules\",\" \"))","v":" "}," "," "," "," "," "," "," "," "," ",0,"A","B","C","D",{"$f":"IF($E$150>1,Z157,IF($D157>4,\"E\",Z157))","v":"D"},{"$f":"IF($E$150>0,AA157,IF($D157>5,\"F\",AA157))","v":"D"}]
[7,{"$f":"VLOOKUP($E$152,$E$153:$AK$159,8,FALSE)","v":" "},{"$f":"VLOOKUP($E$152,$E$153:$AK$159,24,FALSE)","v":"D"},5,"T","No Modules","1 AIU211 module","2 AIU211 modules","3 AIU211 modules","4 AIU211 modules",{"$f":"IF($E$150>1,\" \",IF($D158>4,\"5 AIU211 modules\",\" \"))","v":" "},{"$f":"IF($E$150>0,\" \",IF($D158>5,\"6 AIU211 modules\",\" \"))","v":" "}," "," "," "," "," "," "," "," "," ",0,"A","B","C","D",{"$f":"IF($E$150>1,Z158,IF($D158>4,\"E\",Z158))","v":"D"},{"$f":"IF($E$150>0,AA158,IF($D158>5,\"F\",AA158))","v":"D"}]
[null,null,null,4,"U","No Modules","1 AIU211 module","2 AIU211 modules","3 AIU211 modules","4 AIU211 modules",{"$f":"IF($E$150>1,\" \",IF($D159>4,\"5 AIU211 modules\",\" \"))","v":" "},{"$f":"IF($E$150>0,\" \",IF($D159>5,\"6 AIU211 modules\",\" \"))","v":" "}," "," "," "," "," "," "," "," "," ",0,"A","B","C","D",{"$f":"IF($E$150>1,Z159,IF($D159>4,\"E\",Z159))","v":"D"},{"$f":"IF($E$150>0,AA159,IF($D159>5,\"F\",AA159))","v":"D"}]
[]
[null,null,null,"Cards #",{"$f":"VLOOKUP(Tendering!$B$27,Database!$A$152:$C$158,1,FALSE)-1","v":2}]
[]
[1,{"$f":"VLOOKUP($E$163,$E$164:$AK$170,2,FALSE)","v":"No Modules"},{"$f":"VLOOKUP($E$163,$E$164:$AK$170,18,FALSE)","v":0},null,{"$f":"Configurator!$E$3","v":"M"}]
[2,{"$f":"VLOOKUP($E$163,$E$164:$AK$170,3,FALSE)","v":"1 AOU200 module"},{"$f":"VLOOKUP($E$163,$E$164:$AK$170,19,FALSE)","v":"1"},"Max",null,null,null,null,null,null," "," "," "]
[3,{"$f":"VLOOKUP($E$163,$E$164:$AK$170,4,FALSE)","v":"2 AOU200 modules"},{"$f":"VLOOKUP($E$163,$E$164:$AK$170,20,FALSE)","v":"2"},{"$f":"$D154-$E$161","v":-1},"C","No Modules",{"$f":"IF($D165>0,\"1 AOU200 module\",\" \")","v":" "},{"$f":"IF($D165>1,\"2 AOU200 modules\",\" \")","v":" "},{"$f":"IF($D165>2,\"3 AOU200 modules\",\" \")","v":" "},{"$f":"IF($D165>3,\"4 AOU200 modules\",\" \")","v":" "}," "," "," "," "," "," "," "," "," "," "," ",0,{"$f":"IF($D165>0,\"1\",V165)","v":0},{"$f":"IF($D165>1,\"2\",W165)","v":0},{"$f":"IF($D165>2,\"3\",X165)","v":0},{"$f":"IF($D165>3,\"4\",Y165)","v":0}]
[4,{"$f":"VLOOKUP($E$163,$E$164:$AK$170,5,FALSE)","v":"3 AOU200 modules"},{"$f":"VLOOKUP($E$163,$E$164:$AK$170,21,FALSE)","v":"3"},{"$f":"$D155-$E$161","v":-3},"S","No Modules"," "," "," "," "," "," "," "," "," "," "," "," "," "," "," ",0,0,0,0,0]
[5,{"$f":"VLOOKUP($E$163,$E$164:$AK$170,6,FALSE)","v":"4 AOU200 modules"},{"$f":"VLOOKUP($E$163,$E$164:$AK$170,22,FALSE)","v":"4"},8,"L","No Modules","1 AOU200 module","2 AOU200 modules","3 AOU200 modules","4 AOU200 modules"," "," "," "," "," "," "," "," "," "," "," ",0,"1","2","3","4"]
[null,null,null,7,"M","No Modules","1 AOU200 module","2 AOU200 modules","3 AOU200 modules","4 AOU200 modules"," "," "," "," "," "," "," "," "," "," "," ",0,"1","2","3","4"]
[null,null,null,3,"T","No Modules","1 AOU200 module","2 AOU200 modules","3 AOU200 modules"," "," "," "," "," "," "," "," "," "," "," "," ",0,"1","2","3","3"]
[null,null,null,2,"U","No Modules","1 AOU200 module","2 AOU200 modules"," "," "," "," "," "," "," "," "," "," "," "," "," ",0,"1","2","2","2"]
[]
[]
[null,null,null,"Cards #",{"$f":"VLOOKUP(Tendering!$B$27,Database!$A$152:$C$158,1,FALSE)-1","v":2}]
[null,null,null,"Switch?",{"$f":"ABS(Tendering!$B$29>1)","v":0}]
[1,"Without",0,"Ethernet-based Switch Unit (SWU20x)"]
[2,"SWU200 - With four 10/100BaseT Ethernet ports (RJ45)",1,"Ethernet-based Switch Unit (SWU20x)"]
[3,"SWU202 - With two 100BaseF MultiMode Ethernet ports (ST) and four 10/100BaseT Ethernet ports (RJ45)",3,"Ethernet-based Switch Unit (SWU20x)"]
[4,"SWU204 - With two 100BaseF MonoMode Ethernet ports (SC) and four 10/100BaseT Ethernet ports (RJ45)",5,"Ethernet-based Switch Unit (SWU20x)"]
[5,"SWR212 - With two 100BaseF MultiMode Ethernet ports (ST) + four 10/100BaseT Ethernet ports (RJ45)",6,"Ethernet-based Switch Redundant Unit (SWR20x) - For Ethernet Redunded Ring"]
[6,"SWR214 - With two 100BaseF MonoMode Ethernet ports (SC) + four 10/100BaseT Ethernet ports (RJ45)",7,"Ethernet-based Switch Redundant Unit (SWR20x) - For Ethernet Redunded Ring"]
[7,"SWD212 - With two 100BaseF MultiMode Ethernet ports (ST) + four 10/100BaseT Ethernet ports (RJ45)","A","Ethernet-based Switch Dual Humming Unit (SWD20x)"]
[8,"SWS212 - Wth two 100BaseF MultiMode Ethernet ports (ST) + four 10/100BaseT Ethernet ports (RJ45)","S","Ethernet-based Switch RSTP Compatible Unit (SWS20x)"]
[9,"SWS214 - Wth two 100BaseF MonoMode Ethernet ports (SC) + four 10/100BaseT Ethernet ports (RJ45)","T","Ethernet-based Switch RSTP Compatible Unit (SWS20x)"]
[10,"REU202 - Multimode : with 2*100BaseF MultiMode Eth. Ports + 1*10/100BaseT Eth. Port (RJ45)","U","Ethernet-based Redundant Ethernet Unit PRP/HSR (REU2xx)"]
[11,"REU203 - Mixt : with 1*100BaseF SingleMode + 1*100BaseF MultiMode Eth. Ports +1*10/100BaseT Eth.ports (RJ45)","V","Ethernet-based Redundant Ethernet Unit PRP/HSR (REU2xx)"]
[12,"REU204 - SingleMode: with 2*100BaseF SingleMode Eth. Ports+ 1*10/100BaseT Ethernet ports (RJ45)","W","Ethernet-based Redundant Ethernet Unit PRP/HSR (REU2xx)"]
[]
[1,{"$f":"VLOOKUP($E$188,$E$189:$AK$195,2,FALSE)","v":"Up to 4 IEDs links - No SBU200 modules"},{"$f":"VLOOKUP($E$188,$E$189:$AK$195,18,FALSE)","v":1},null,{"$f":"Configurator!$E$3","v":"M"}]
[2,{"$f":"VLOOKUP($E$188,$E$189:$AK$195,3,FALSE)","v":"1 SBU200 Module"},{"$f":"VLOOKUP($E$188,$E$189:$AK$195,19,FALSE)","v":"A"},"Max"]
[3,{"$f":"VLOOKUP($E$188,$E$189:$AK$195,4,FALSE)","v":"2 SBU200 Modules"},{"$f":"VLOOKUP($E$188,$E$189:$AK$195,20,FALSE)","v":"B"},{"$f":"$D165-$E$173","v":-3},"C","Up to 4 IEDs links - No SBU200 modules",{"$f":"IF($D190>0,CONCATENATE(\"1 \",$E$199,\" Module\"),\" \")","v":" "},{"$f":"IF($D190>1,CONCATENATE(\"2 \",$E$199,\" Modules\"),\" \")","v":" "},"","","","","","",""," "," "," "," "," "," ",1,{"$f":"IF($D190>0,\"A\",V190)","v":1},{"$f":"IF($D190>1,\"B\",W190)","v":1},{"$f":"X190","v":1},{"$f":"Y190","v":1},1,1,1,1,1]
[4,{"$f":"VLOOKUP($E$188,$E$189:$AK$195,5,FALSE)","v":"3 SBU200 Modules"},{"$f":"VLOOKUP($E$188,$E$189:$AK$195,21,FALSE)","v":"C"},-5,"S","Up to 4 IEDs links - No SBU200 modules"," "," ","","","","","","",""," "," "," "," "," "," ",1,1,1,{"$f":"X191","v":1},1,1,1,1,1,1]
[5,{"$f":"VLOOKUP($E$188,$E$189:$AK$195,6,FALSE)","v":"4 SBU200 Modules"},{"$f":"VLOOKUP($E$188,$E$189:$AK$195,22,FALSE)","v":"D"},6,"L","Up to 4 IEDs links - No SBU200 modules","1 SBU200 Module","2 SBU200 Modules",{"$f":"IF($D192>2,CONCATENATE(\"3 \",$E$199,\" Modules\"),\" \")","v":"3 SBU200 Modules"},{"$f":"IF($D192>3,CONCATENATE(\"4 \",$E$199,\" Modules\"),\" \")","v":"4 SBU200 Modules"},{"$f":"IF($D192>4,CONCATENATE(\"5 \",$E$199,\" Modules\"),\" \")","v":"5 SBU200 Modules"},{"$f":"IF($D192>5,CONCATENATE(\"6 \",$E$199,\" Modules\"),\" \")","v":"6 SBU200 Modules"},{"$f":"IF($D192>6,CONCATENATE(\"7 \",$E$199,\" Modules\"),\" \")","v":" "},{"$f":"IF($D192>7,CONCATENATE(\"8 \",$E$199,\" Modules\"),\" \")","v":" "},{"$f":"IF($D192>8,CONCATENATE(\"9 \",$E$199,\" Modules\"),\" \")","v":" "}," "," "," "," "," "," ",1,"A","B",{"$f":"IF($D192>2,\"C\",X192)","v":"C"},{"$f":"IF($D192>3,\"D\",Y192)","v":"D"},{"$f":"IF($D192>4,\"E\",Z192)","v":"E"},{"$f":"IF($D192>5,\"F\",AA192)","v":"F"},{"$f":"IF($D192>6,\"G\",AB192)","v":"F"},{"$f":"IF($D192>7,\"H\",AC192)","v":"F"},{"$f":"IF($D192>8,\"I\",AD192)","v":"F"}]
[6,{"$f":"VLOOKUP($E$188,$E$189:$AK$195,7,FALSE)","v":"5 SBU200 Modules"},{"$f":"VLOOKUP($E$188,$E$189:$AK$195,23,FALSE)","v":"E"},5,"M","Up to 4 IEDs links - No SBU200 modules","1 SBU200 Module","2 SBU200 Modules",{"$f":"IF($D193>2,CONCATENATE(\"3 \",$E$199,\" Modules\"),\" \")","v":"3 SBU200 Modules"},{"$f":"IF($D193>3,CONCATENATE(\"4 \",$E$199,\" Modules\"),\" \")","v":"4 SBU200 Modules"},{"$f":"IF($D193>4,CONCATENATE(\"5 \",$E$199,\" Modules\"),\" \")","v":"5 SBU200 Modules"},{"$f":"IF($D193>5,CONCATENATE(\"6 \",$E$199,\" Modules\"),\" \")","v":" "},{"$f":"IF($D193>6,CONCATENATE(\"7 \",$E$199,\" Modules\"),\" \")","v":" "},{"$f":"IF($D193>7,CONCATENATE(\"8 \",$E$199,\" Modules\"),\" \")","v":" "},{"$f":"IF($D193>8,CONCATENATE(\"9 \",$E$199,\" Modules\"),\" \")","v":" "}," "," "," "," "," "," ",1,"A","B",{"$f":"IF($D193>2,\"C\",X193)","v":"C"},{"$f":"IF($D193>3,\"D\",Y193)","v":"D"},{"$f":"IF($D193>4,\"E\",Z193)","v":"E"},{"$f":"IF($D193>5,\"F\",AA193)","v":"E"},{"$f":"IF($D193>6,\"G\",AB193)","v":"E"},{"$f":"IF($D193>7,\"H\",AC193)","v":"E"},{"$f":"IF($D193>8,\"I\",AD193)","v":"E"}]
[7,{"$f":"VLOOKUP($E$188,$E$189:$AK$195,8,FALSE)","v":" "},{"$f":"VLOOKUP($E$188,$E$189:$AK$195,24,FALSE)","v":"E"},1,"T","Up to 4 IEDs links - No SBU200 modules","1 SBU200 Module"," ",{"$f":"IF($D194>2,CONCATENATE(\"3 \",$E$199,\" Modules\"),\" \")","v":" "},{"$f":"IF($D194>3,CONCATENATE(\"4 \",$E$199,\" Modules\"),\" \")","v":" "},{"$f":"IF($D194>4,CONCATENATE(\"5 \",$E$199,\" Modules\"),\" \")","v":" "},{"$f":"IF($D194>5,CONCATENATE(\"6 \",$E$199,\" Modules\"),\" \")","v":" "},{"$f":"IF($D194>6,CONCATENATE(\"7 \",$E$199,\" Modules\"),\" \")","v":" "},{"$f":"IF($D194>7,CONCATENATE(\"8 \",$E$199,\" Modules\"),\" \")","v":" "},{"$f":"IF($D194>8,CONCATENATE(\"9 \",$E$199,\" Modules\"),\" \")","v":" "}," "," "," "," "," "," ",1,"A","A",{"$f":"IF($D194>2,\"C\",X194)","v":"A"},{"$f":"IF($D194>3,\"D\",Y194)","v":"A"},{"$f":"IF($D194>4,\"E\",Z194)","v":"A"},{"$f":"IF($D194>5,\"F\",AA194)","v":"A"},{"$f":"IF($D194>6,\"G\",AB194)","v":"A"},{"$f":"IF($D194>7,\"H\",AC194)","v":"A"},{"$f":"IF($D194>8,\"I\",AD194)","v":"A"}]
[8,{"$f":"VLOOKUP($E$188,$E$189:$AK$195,9,FALSE)","v":" "},{"$f":"VLOOKUP($E$188,$E$189:$AK$195,25,FALSE)","v":"E"},{"$f":"$D170-$E$173","v":0},"U","Up to 4 IEDs links - No SBU200 modules"," "," ",{"$f":"IF($D195>2,CONCATENATE(\"3 \",$E$199,\" Modules\"),\" \")","v":" "},{"$f":"IF($D195>3,CONCATENATE(\"4 \",$E$199,\" Modules\"),\" \")","v":" "},{"$f":"IF($D195>4,CONCATENATE(\"5 \",$E$199,\" Modules\"),\" \")","v":" "},{"$f":"IF($D195>5,CONCATENATE(\"6 \",$E$199,\" Modules\"),\" \")","v":" "},{"$f":"IF($D195>6,CONCATENATE(\"7 \",$E$199,\" Modules\"),\" \")","v":" "},"",""," "," "," "," "," "," ",1,1,1,{"$f":"IF($D195>2,\"C\",X195)","v":1},{"$f":"IF($D195>3,\"D\",Y195)","v":1},{"$f":"IF($D195>4,\"E\",Z195)","v":1},{"$f":"IF($D195>5,\"F\",AA195)","v":1},{"$f":"IF($D195>6,\"G\",AB195)","v":1},{"$f":"AC195","v":1},{"$f":"AD195","v":1}]
[9,{"$f":"VLOOKUP($E$188,$E$189:$AK$195,10,FALSE)","v":" "},{"$f":"VLOOKUP($E$188,$E$189:$AK$195,26,FALSE)","v":"E"}]
[10,{"$f":"VLOOKUP($E$188,$E$189:$AK$195,11,FALSE)","v":" "},{"$f":"VLOOKUP($E$188,$E$189:$AK$195,27,FALSE)","v":"E"}]
[null,null,null,"Cards #",{"$f":"VLOOKUP(Tendering!$B$32,$A$188:$C$197,1,FALSE)-1","v":0}]
[1,"Disabled",0,null,"SBU200"]
[2,"Enabled ISaGRAF run-time for Programmable Logic, Automation, etc.",1]
[]
[1,"No Software loaded","N"]
[2,"Option CD3: No Software loaded, delivered with one CD-ROM including the C264 software (PACIS V3)","C"]
[3,"Option CD4: No Software loaded, delivered with one CD-ROM including the C264 software (PACIS V4)","D"]
[4,"iAVR","T"]
[]
[1,"Disabled",0]
[2,"Synchrocheck/Voltage Regulation/Autorecloser enabled",1]
[3,"iAVR Voltage regulation - Standard application (in 40T rack) - application loaded on CPU270","S"]
[4,"iAVR Voltage regulation - Premium application (in 60T rack) - application loaded on CPU270","P"]
[5,"iAVR Voltage regulation - \"Elite\" application (To be Defined) - application loaded on CPU270","E"]
[]
[1,"No cable",0]
[2,"Cable for Detachable Front Panel : 3 m",3]

{"sheet":"Tendering","index":6,"n_rows":36,"n_cols":36,"rows_kept":36,"cut":false,"hidden":false,"merged":[[11,0,12,0],[18,0,19,0]]}
[null,null,{"$f":"IF(C3<>\"\",COLUMN(C:C)-2,\"\")","v":1},2,3,4,5,6,7,8,9,10,11,12,13,14,15,16,17,18,19,20,21,22,23,24,25,26,27,{"$f":"IF(AD3<>\"\",COLUMN(AD:AD)-2,\"\")","v":28},{"$f":"IF(AE3<>\"\",COLUMN(AE:AE)-2,\"\")","v":29},{"$f":"IF(AF3<>\"\",COLUMN(AF:AF)-2,\"\")","v":30},{"$f":"IF(AG3<>\"\",COLUMN(AG:AG)-2,\"\")","v":""},{"$f":"MAX(C1:AG1,AI1)","v":31},{"$f":"MAX(AI5:AI30)+1","v":31}]
["Cortec Landing cell :","C264S11I6910111031000031111T10",{"$f":"MID($B$2,COLUMN(C:C)-2,1)","v":"C"},"2","6","4","S","1","1","I","6","9","1","0","1","1","1","0","3","1","0","0","0","0","3","1","1","1","1","T","1","0","",""]
["Configurator feedback :",{"$f":"C3&D3&E3&F3&G3&H3&I3&J3&K3&L3&M3&N3&O3&P3&Q3&R3&S3&T3&U3&V3&W3&X3&Y3&Z3&AA3&AB3&AC3&AD3&AE3&AF3","v":"C264M31A191011011102B101110NS0"},{"$f":"+C5&C6&C7&C8&C9&C13&C11&C15&C12&C14&C18&C16&C10&C17&C19&C20&C21&C22&C23&C24&C25&C26&C27&C28&C29&C30&C31&C32&C33&C34&C35&C36","v":"C"},{"$f":"+D5&D6&D7&D8&D9&D13&D11&D15&D12&D14&D18&D16&D10&D17&D19&D20&D21&D22&D23&D24&D25&D26&D27&D28&D29&D30&D31&D32&D33&D34&D35&D36","v":"2"},"6","4","M","3","1","A","1","9","1","0","1","1","0","1","1","1","0","2","B","1","0","1","1","1","0","N","S","0",{"$f":"+AG5&AG6&AG7&AG8&AG9&AG13&AG11&AG15&AG12&AG14&AG18&AG16&AG10&AG17&AG19&AG20&AG21&AG22&AG23&AG24&AG25&AG26&AG27&AG28&AG29&AG30","v":""},"double digit in same row"]
[null,0]
["Cortec digit control 1",null,"C",null,null,null,null,null,null,null,null,null,null,null,null,null,null,null,null,null,null,null,null,null,null,null,null,null,null,null,null,null,null,null,{"$f":"+IF(AND(ISBLANK(A5),ISBLANK(B5)),0,ROW(A5))","v":5}]
["Cortec digit control 2",null,null,2,null,null,null,null,null,null,null,null,null,null,null,null,null,null,null,null,null,null,null,null,null,null,null,null,null,null,null,null,null,null,{"$f":"+IF(AND(ISBLANK(A6),ISBLANK(B6)),0,ROW(A6))","v":6}]
["Cortec digit control 3",null,null,null,6,null,null,null,null,null,null,null,null,null,null,null,null,null,null,null,null,null,null,null,null,null,null,null,null,null,null,null,null,null,7]
["Cortec digit control 4",null,null,null,null,4,null,null,null,null,null,null,null,null,null,null,null,null,null,null,null,null,null,null,null,null,null,null,null,null,null,null,null,null,8]
["Rack",4,null,null,null,null,{"$f":"IF(OR(ISERR(Configurator!E$3),ISNA(Configurator!E$3)),\"_\",Configurator!E$3)","v":"M"},null,null,null,null,null,null,null,null,null,null,null,null,null,null,null,null,null,null,null,null,null,null,null,null,null,null,null,9]
["GHU",4,null,null,null,null,null,{"$f":"IF(OR(ISERR(Configurator!F$3),ISNA(Configurator!F$3)),\"_\",Configurator!F$3)","v":3},null,null,null,null,null,null,null,null,null,null,null,null,null,null,null,null,null,null,null,null,null,null,null,null,null,null,10]
["Lang",2,null,null,null,null,null,null,{"$f":"IF(OR(ISERR(Configurator!G$3),ISNA(Configurator!G$3)),\"_\",Configurator!G$3)","v":1},null,null,null,null,null,null,null,null,null,null,null,null,null,null,null,null,null,null,null,null,null,null,null,null,null,11]
["P.S.",null,null,null,null,null,null,null,null,null,null,null,null,null,null,null,null,null,null,null,null,null,null,null,null,null,null,null,null,null,null,null,null,null,12,1]
[null,1,null,null,null,null,null,null,null,{"$f":"IF(OR(ISERR(Configurator!H$3),ISNA(Configurator!H$3)),\"_\",Configurator!H$3)","v":"A"},null,null,null,null,null,null,null,null,null,null,null,null,null,null,null,null,null,null,null,null,null,null,null,null,13]
["Biu Serial",1,null,null,null,null,null,null,null,null,{"$f":"IF(OR(ISERR(Configurator!I$3),ISNA(Configurator!I$3)),\"_\",Configurator!I$3)","v":1},null,null,null,null,null,null,null,null,null,null,null,null,null,null,null,null,null,null,null,null,null,null,null,14]
["CPU",1,null,null,null,null,null,null,null,null,null,{"$f":"IF(OR(ISERR(Configurator!J$3),ISNA(Configurator!J$3)),\"_\",Configurator!J$3)","v":"9"},null,null,null,null,null,null,null,null,null,null,null,null,null,null,null,null,null,null,null,null,null,null,15]
["CPU serial",1,null,null,null,null,null,null,null,null,null,null,{"$f":"IF(OR(ISERR(Configurator!K$3),ISNA(Configurator!K$3)),\"_\",Configurator!K$3)","v":1},null,null,null,null,null,null,null,null,null,null,null,null,null,null,null,null,null,null,null,null,null,16]
["Constant",null,null,null,null,null,null,null,null,null,null,null,null,{"$f":"IF(OR(ISERR(Configurator!L$3),ISNA(Configurator!L$3)),\"_\",Configurator!L$3)","v":0},null,null,null,null,null,null,null,null,null,null,null,null,null,null,null,null,null,null,null,null,17]
["Tropical",2,null,null,null,null,null,null,null,null,null,null,null,null,{"$f":"IF(OR(ISERR(Configurator!M$3),ISNA(Configurator!M$3)),\"_\",Configurator!M$3)","v":1},null,null,null,null,null,null,null,null,null,null,null,null,null,null,null,null,null,null,null,18]
["TMU",null,null,null,null,null,null,null,null,null,null,null,null,null,null,null,null,null,null,null,null,null,null,null,null,null,null,null,null,null,null,null,null,null,19,2]
[null,1,null,null,null,null,null,null,null,null,null,null,null,null,null,{"$f":"IF(OR(ISERR(Configurator!N$3),ISNA(Configurator!N$3)),\"_\",Configurator!N$3)","v":"1"},null,null,null,null,null,null,null,null,null,null,null,null,null,null,null,null,null,null,20]
["Voltage",1,null,null,null,null,null,null,null,null,null,null,null,null,null,null,{"$f":"IF(OR(ISERR(Configurator!O$3),ISNA(Configurator!O$3)),\"_\",Configurator!O$3)","v":0},null,null,null,null,null,null,null,null,null,null,null,null,null,null,null,null,null,21]
["DIU200",2,null,null,null,null,null,null,null,null,null,null,null,null,null,null,null,{"$f":"IF(OR(ISERR(Configurator!P$3),ISNA(Configurator!P$3)),\"_\",Configurator!P$3)","v":1},null,null,null,null,null,null,null,null,null,null,null,null,null,null,null,null,22]
["DIU211",2,null,null,null,null,null,null,null,null,null,null,null,null,null,null,null,null,{"$f":"IF(OR(ISERR(Configurator!Q$3),ISNA(Configurator!Q$3)),\"_\",Configurator!Q$3)","v":"1"},null,null,null,null,null,null,null,null,null,null,null,null,null,null,null,23]
["DOU",2,null,null,null,null,null,null,null,null,null,null,null,null,null,null,null,null,null,{"$f":"IF(OR(ISERR(Configurator!R$3),ISNA(Configurator!R$3)),\"_\",Configurator!R$3)","v":"1"},null,null,null,null,null,null,null,null,null,null,null,null,null,null,24]
["CCU",1,null,null,null,null,null,null,null,null,null,null,null,null,null,null,null,null,null,null,{"$f":"IF(OR(ISERR(Configurator!S$3),ISNA(Configurator!S$3)),\"_\",Configurator!S$3)","v":0},null,null,null,null,null,null,null,null,null,null,null,null,null,25]
["AIU201",3,null,null,null,null,null,null,null,null,null,null,null,null,null,null,null,null,null,null,null,{"$f":"IF(OR(ISERR(Configurator!T$3),ISNA(Configurator!T$3)),\"_\",Configurator!T$3)","v":"2"},null,null,null,null,null,null,null,null,null,null,null,null,26]
["AIU211",3,null,null,null,null,null,null,null,null,null,null,null,null,null,null,null,null,null,null,null,null,{"$f":"IF(OR(ISERR(Configurator!U$3),ISNA(Configurator!U$3)),\"_\",Configurator!U$3)","v":"B"},null,null,null,null,null,null,null,null,null,null,null,27]
["AOU",2,null,null,null,null,null,null,null,null,null,null,null,null,null,null,null,null,null,null,null,null,null,{"$f":"IF(OR(ISERR(Configurator!V$3),ISNA(Configurator!V$3)),\"_\",Configurator!V$3)","v":"1"},null,null,null,null,null,null,null,null,null,null,28]
["SW",1,null,null,null,null,null,null,null,null,null,null,null,null,null,null,null,null,null,null,null,null,null,null,{"$f":"IF(OR(ISERR(Configurator!W$3),ISNA(Configurator!W$3)),\"_\",Configurator!W$3)","v":0},null,null,null,null,null,null,null,null,null,29]
["Constant",null,null,null,null,null,null,null,null,null,null,null,null,null,null,null,null,null,null,null,null,null,null,null,null,{"$f":"IF(OR(ISERR(Configurator!X$3),ISNA(Configurator!X$3)),\"_\",Configurator!X$3)","v":1},null,null,null,null,null,null,null,null,30]
["Constant",null,null,null,null,null,null,null,null,null,null,null,null,null,null,null,null,null,null,null,null,null,null,null,null,null,{"$f":"IF(OR(ISERR(Configurator!Y$3),ISNA(Configurator!Y$3)),\"_\",Configurator!Y$3)","v":1},null,null,null,null,null,null,null,31]
["CommIED / SBU200",1,null,null,null,null,null,null,null,null,null,null,null,null,null,null,null,null,null,null,null,null,null,null,null,null,null,{"$f":"IF(OR(ISERR(Configurator!Z$3),ISNA(Configurator!Z$3)),\"_\",Configurator!Z$3)","v":1},null,null,null,null,null,null,32]
["ISaGRAF",1,null,null,null,null,null,null,null,null,null,null,null,null,null,null,null,null,null,null,null,null,null,null,null,null,null,null,{"$f":"IF(OR(ISERR(Configurator!AA$3),ISNA(Configurator!AA$3)),\"_\",Configurator!AA$3)","v":0},null,null,null,null,null,33]
["Soft",1,null,null,null,null,null,null,null,null,null,null,null,null,null,null,null,null,null,null,null,null,null,null,null,null,null,null,null,{"$f":"IF(OR(ISERR(Configurator!AB$3),ISNA(Configurator!AB$3)),\"_\",Configurator!AB$3)","v":"N"},null,null,null,null,34]
["Built In",3,null,null,null,null,null,null,null,null,null,null,null,null,null,null,null,null,null,null,null,null,null,null,null,null,null,null,null,null,{"$f":"IF(OR(ISERR(Configurator!AC$3),ISNA(Configurator!AC$3)),\"_\",Configurator!AC$3)","v":"S"},null,null,null,35]
["Detach",1,null,null,null,null,null,null,null,null,null,null,null,null,null,null,null,null,null,null,null,null,null,null,null,null,null,null,null,null,null,{"$f":"IF(OR(ISERR(Configurator!AD$3),ISNA(Configurator!AD$3)),\"_\",Configurator!AD$3)","v":0},null,null,36]